Cogmind - Beta 10.1 @@@ ROGUE MODE // 2020.10.28 @ 19:37:46 Player: Vectis Result: Destroyed Tau Ceti IV! Performance ------------- Evolutions (9) 4500 Regions Visited (37) 7400 Robots Destroyed (501) 2505 Value Destroyed (23501) 23501 Prototype IDs (141) 2820 Alien Tech Used (11) 2200 Bonus (41890) 41890 TOTAL SCORE: 84816 Bonus ------- High Alert Combat Kills 2750 Follower Combat Kills 3145 Network Hubs Disabled 800 Aligned with FarCom 300 Met Data Miner 300 Met Imprinter 300 Built Enhanced Grunts 300 A7 Reached Mainframe 300 Met R17 at Cetus 500 Found Hidden Lab 3000 Hacked Protovariant 500 Met R17 at Research 2000 Destroyed MAIN.C Guards 500 Met MAIN.C 5000 Destroyed MAIN.C Shell 5000 Destroyed MAIN.C 10000 Started Test 138-B 500 Started Test 138-C 8000 Destroyed A8 300 Destroyed A2 1000 Win 3000 Friendly Fire -5605 Cogmind --------- Core Integrity 527/1600 Matter 288/300 Energy 1628/1630 System Corruption 0% Temperature Cool (2) Movement Flying (32) Location Subspace Parts ------- > --- POWER (2) -------- Zero-point Reactor Zero-point Reactor > --- PROPULSION (2) --- Cooled Field Propulsion Drive Improved Q-thruster > --- UTILITY (19) ----- Experimental Power Amplifier Lightpack 2.0 Experimental Energy Well Dimensional Manipulator Dimensional Manipulator Dimensional Manipulator Experimental Terrain Scan Processor Experimental Targeting Computer Experimental Targeting Computer Experimental Targeting Computer Experimental Target Analyzer Advanced Armor Integrity Analyzer Experimental Weapon Cycler Experimental Core Shielding Experimental Powered Armor SHELL Armor > --- WEAPON (2) ------- 8R-AWN's Boregun > --- INVENTORY (24) --- Mini Fusion Reactor Zero-point Reactor Cooled Field Propulsion Drive Improved Diametric Drive Experimental Coolant Injector Experimental Energy Well (1000) Experimental Matter Compressor (399) Experimental Optical Array Experimental Terrain Scanner Experimental Targeting Computer Experimental Melee Analysis Suite Experimental Core Analyzer Femtoactuators Beam Splitter Improved Potential Cannon Z-bomb Delivery System Sigix Broadsword Plasma Lance Peak State ------------ > --- POWER ------------ Zero-point Reactor Zero-point Reactor > --- PROPULSION ------- Experimental Biometal Heavy Treads > --- UTILITY ---------- Lightpack 2.0 Dimensional Manipulator Dimensional Manipulator Dimensional Manipulator Dimensional Manipulator Experimental Terrain Scan Processor Experimental Targeting Computer Experimental Target Analyzer Advanced Armor Integrity Analyzer Experimental Weapon Cycler Advanced Reaction Control System Advanced Phase Shifter Experimental Utility Shielding Experimental Weapon Shielding SHELL Armor AEGIS Remote Shield > --- WEAPON ----------- Ragnarok Missile Launcher Z-bomb Delivery System > --- INVENTORY -------- Mini Fusion Reactor Zero-point Reactor Cooled Field Propulsion Drive Cooled Field Propulsion Drive Cooled Field Propulsion Drive Improved Q-thruster Experimental Power Amplifier Experimental Coolant Injector Large Storage Unit Large Storage Unit Experimental Energy Well Experimental Matter Compressor Quantum Shading Machine Experimental Optical Array Experimental Targeting Computer Matter Filter Experimental Powered Armor Beam Splitter AEGIS Remote Shield Improved Potential Cannon 8R-AWN's Boregun Sigix Broadsword [Rating: 252] Favorites ----------- Power Zero-point Reactor Engine Heavy Ion Engine Power Core Micro Fission Core Reactor Zero-point Reactor Propulsion Cooled Field Propulsion Drive Treads Light Treads Leg Aluminum Leg Wheel Wheel Flight Unit Cooled Field Propulsion Drive Utility Large Storage Unit Device Dimensional Manipulator Storage Large Storage Unit Processor Improved Melee Analysis Suite Hackware System Shield Protection Experimental Utility Shielding Weapon 8R-AWN's Boregun Energy Gun Heavy EM Pulse Gun Energy Cannon Warp Cannon Ballistic Gun 8R-AWN's Boregun Ballistic Cannon Light Cannon Launcher Grenade Launcher Special Weapon Plasma Cutter Impact Weapon Core Stripper Slashing Weapon Sigix Broadsword Piercing Weapon Force Lance Build | -11 -10 -10 -9 -9 -9 -8 -8 -7 -7 -7 -7 -6 -6 -6 -6 -6 -6 -6 -5 -5 -5 -5 -5 -5 -5 -5 -4 -4 -4 -3 -3 -3 -2 -2 -1 -1 -1 ------- Run | Scr Mat Min Mat Min Exi Min Mat Fac Low Low Zio Pro Fac Was Fac Low Low Dat Pro Fac Was Fac Ext Cet Arc Hub Fac Arm Lab Res Qua Sec Res Tes Acc Com Ac0 Slots Evolved 18 | . . . 2 . . . 2 2 . . . . 2 . . . . . . 2 . . . . . . 2 . . 2 . . 2 . 2 . . Power 1 | . . . . . . . . . . . . . 1 . . . . . . . . . . . . . . . . . . . . . . . . Propulsion . | . . . . . . . . . . . . . . . . . . . . . . . . . . . . . . . . . . . . . . Utility 17 | . . . 2 . . . 2 2 . . . . 1 . . . . . . 2 . . . . . . 2 . . 2 . . 2 . 2 . . Weapon . | . . . . . . . . . . . . . . . . . . . . . . . . . . . . . . . . . . . . . . Parts Attached 979 | 1 23 5 11 4 42 3 56 10 21 3 12 3 20 11 12 5 2 . 2 34 . 46 18 18 13 5 21 19 11 22 27 57 10 77 93 214 48 Power 58 | . 2 . 3 . 1 . 5 . 1 . 1 . 2 1 2 . . . . 2 . 2 2 1 2 . 1 . 1 . 1 . . 4 3 19 2 Engine 9 | . 2 . 3 . 1 . 2 . . . . . 1 . . . . . . . . . . . . . . . . . . . . . . . . Core 23 | . . . . . . . 3 . 1 . 1 . 1 1 2 . . . . 2 . 2 2 1 2 . 1 . 1 . 1 . . 2 . . . Reactor 26 | . . . . . . . . . . . . . . . . . . . . . . . . . . . . . . . . . . 2 3 19 2 Propulsion 61 | . 4 1 2 . 6 . 9 . . 3 2 . 1 . . . . . . 2 . . . . 2 . 1 . . 3 . . . 1 2 18 4 Treads 12 | . . . . . 2 . 7 . . . . . . . . . . . . . . . . . . . . . . . . . . . . 3 . Leg 4 | . 1 . . . . . . . . . . . . . . . . . . . . . . . . . . . . . . . . . . 3 . Wheel 12 | . 3 1 2 . 4 . . . . . . . . . . . . . . . . . . . . . . . . . . . . . . 2 . Hover . | . . . . . . . . . . . . . . . . . . . . . . . . . . . . . . . . . . . . . . Flight 33 | . . . . . . . 2 . . 3 2 . 1 . . . . . . 2 . . . . 2 . 1 . . 3 . . . 1 2 10 4 Utility 473 | 1 2 . 2 . 21 . 13 9 7 . 6 2 12 6 5 1 . . . 20 . 29 7 10 7 5 11 17 5 10 16 26 4 24 40 120 35 Device 284 | . . . . . 11 . 4 6 5 . 5 1 10 4 2 1 . . . 14 . 20 2 2 3 2 6 11 2 5 10 13 2 14 29 72 28 Storage 44 | 1 2 . 2 . 5 . 6 . 1 . 1 . . . . . . . . . . . . 2 2 . . . . 1 . . . 1 . 19 1 Processor 19 | . . . . . . . 2 . 1 . . . . 2 . . . . . . . 1 2 . . . 1 1 . 1 . 1 . . 2 3 2 Hackware 21 | . . . . . . . 1 3 . . . . 1 . 2 . . . . 4 . 2 . . . 2 1 . 1 . . . 1 1 2 . . Protection 105 | . . . . . 5 . . . . . . 1 1 . 1 . . . . 2 . 6 3 6 2 1 3 5 2 3 6 12 1 8 7 26 4 Artifact . | . . . . . . . . . . . . . . . . . . . . . . . . . . . . . . . . . . . . . . Weapon 387 | . 15 4 4 4 14 3 29 1 13 . 3 1 5 4 5 4 2 . 2 10 . 15 9 7 2 . 8 2 5 9 10 31 6 48 48 57 7 Energy Gun 41 | . 4 2 3 2 4 1 18 . . . . . . . . . . . . . . . . . . . . . 1 . . . . 2 . 4 . Energy Cannon 26 | . . . . . . . . . . . . . . . . . . . . . . . . . . . . . 1 . 1 5 2 8 4 5 . Ballistic Gun 184 | . 4 . 1 . 7 . 4 . 8 . 1 . 2 . 2 2 1 . . 4 . 9 6 2 1 . 4 1 1 5 5 14 4 30 30 30 6 Ballistic Cannon 5 | . 1 . . . . . . . . . 1 . . 1 . . . . . . . . . . . . . . . . . . . . . 2 . Launcher 33 | . 6 2 . 2 2 2 6 . . . . 1 1 . . . . . . 2 . . 1 3 . . . . . . . . . . . 5 . Special Weapon 5 | . . . . . 1 . 1 . . . . . . . 1 . . . . . . . . . . . . . 1 . . . . . . 1 . Impact Weapon 3 | . . . . . . . . . . . . . . . . . . . . . . . . . . . . . . . . . . . . 3 . Slashing Weapon 56 | . . . . . . . . 1 5 . 1 . . 1 2 2 1 . 1 2 . . . . . . . . . . 1 12 . 8 12 7 . Piercing Weapon 34 | . . . . . . . . . . . . . 2 2 . . . . 1 2 . 6 2 2 1 . 4 1 1 4 3 . . . 2 . 1 Special Melee Weapon . | . . . . . . . . . . . . . . . . . . . . . . . . . . . . . . . . . . . . . . Unidentified Prototypes 66 | . . . 2 . 7 . 3 . . 1 2 . . . . . . . . . . . . 2 1 . . . 5 . . 3 . 13 . 26 1 Parts Lost 35 | . 3 . 5 . 1 1 8 . 2 . . 2 . . . . . . . 1 1 1 . . . . . . . . . . . . 1 . 9 Power 7 | . 2 . . . . . 2 . 1 . . 1 . . . . . . . . 1 . . . . . . . . . . . . . . . . Propulsion 5 | . . . 2 . . . 2 . . . . . . . . . . . . . . . . . . . . . . . . . . . . . 1 Utility 13 | . . . . . 1 . . . 1 . . 1 . . . . . . . 1 . 1 . . . . . . . . . . . . 1 . 7 Weapon 10 | . 1 . 3 . . 1 4 . . . . . . . . . . . . . . . . . . . . . . . . . . . . . 1 Highest Loss Streak 7 | . 1 . 2 . 1 1 3 . 2 . . 2 . . . . . . . 1 1 1 . . . . . . . . . . . . 1 . 7 Average Slot Usage (%) 87 | . 98 100 89 100 89 88 97 76 74 76 60 52 75 83 83 85 86 86 86 86 86 90 93 90 62 94 93 94 89 94 94 90 94 94 95 86 86 Engine 2 | . 13 14 10 11 10 11 7 7 6 . . . 2 3 . . . . . . . . . . . . . . . . . . . . . . . Core 2 | . . . . . . . 1 . . 7 6 5 6 8 12 13 13 13 13 10 9 11 11 11 5 11 10 10 10 9 9 9 8 7 . . . Reactor 3 | . . . . . . . . . . . . . . . . . . . . . . . . . . . . . . . . . . . 7 7 7 Treads 2 | . . . . . 11 . 14 . . . . . . . . . . . . . . . . . . . . . . . . . . . . . . Wheel 2 | . 20 28 21 22 10 22 2 . . . . . . . . . . . . . . . . . . . . . . . . . . . . . . Flight 6 | . . . . . . . . 15 15 15 14 15 13 13 13 13 13 13 13 11 11 11 11 11 5 11 10 10 10 8 9 9 8 8 8 6 7 Device 11 | . . . . . 6 . . 7 6 7 6 3 15 23 17 12 13 13 13 11 5 15 15 14 6 10 15 13 13 15 13 13 14 13 13 14 30 Storage 18 | . 28 28 36 44 29 33 52 7 4 7 6 7 6 6 6 6 6 6 6 5 5 5 5 7 3 5 5 5 5 5 9 9 8 8 8 19 5 Processor 16 | . . . . . . . . 7 7 15 15 15 13 13 13 13 13 13 13 11 11 11 19 17 17 17 18 21 26 27 28 28 26 26 24 23 16 Hackware 5 | . . . . . . . . 28 29 23 8 . 5 6 12 20 20 20 20 28 29 20 11 11 11 23 21 18 10 9 9 9 13 13 18 . . Protection 5 | . . . . . 4 . . . . . . 3 6 . . . . . . . 5 2 3 5 5 . . 3 4 5 4 4 7 7 7 7 11 Energy Gun 2 | . 9 16 20 21 10 5 15 . . . . . . . . . . . . . . . . . . . . . . . . . . . . . . Ballistic Gun 5 | . 11 1 . . 6 . . . . . . . . . . . . . . . . 3 9 . 3 5 6 6 3 7 5 1 7 6 7 5 7 Naked Turns . | . . . . . . . . . . . . . . . . . . . . . . . . . . . . . . . . . . . . . . Heaviest Build 221 | 14 73 73 142 142 142 83 221 12 23 11 20 15 30 29 30 24 23 23 23 28 23 32 30 39 29 29 31 32 30 38 44 47 45 53 58 197 132 Greatest Support 195 | 20 20 20 26 26 40 20 40 24 24 12 12 12 36 36 36 24 24 24 24 28 28 40 40 40 40 40 44 32 32 52 56 68 50 54 84 134 195 Greatest Overweight (x) 20 | . 3 3 14 5 14 4 20 . 1 . 4 1 . . . . . . . . . 1 1 . 2 . 1 . . . . . . 1 . 3 . Average Overweight (x) . | . 2 3 4 5 2 4 6 . . . . . . . . . . . . . . . . . . . . . . . . . . . . . . Largest Inventory Capacity 58 | 8 20 20 36 36 40 40 56 24 24 24 24 24 24 24 24 24 24 24 24 24 24 24 24 24 24 24 24 24 24 28 28 28 28 28 28 58 54 Average Capacity 36 | 6 18 20 30 36 27 40 51 24 16 24 22 24 24 24 24 24 24 24 24 24 24 24 24 24 16 24 24 24 24 25 28 28 28 28 28 46 24 Most Carried 54 | 6 20 20 33 35 40 40 52 24 24 24 24 22 24 24 24 24 24 24 24 24 24 24 24 24 24 24 24 24 24 28 28 28 28 28 28 54 54 Average Carried 25 | 6 15 19 27 33 25 39 48 23 16 23 20 21 23 23 23 23 23 24 24 23 24 22 21 23 11 24 23 23 23 24 27 27 27 27 27 25 24 Final Capacity 54 | 8 20 20 36 36 40 40 24 24 24 24 24 24 24 24 24 24 24 24 24 24 24 24 24 24 24 24 24 24 24 28 28 28 28 28 28 54 24 Final Carried 54 | 6 20 20 33 35 40 39 24 24 24 24 22 22 24 24 24 24 24 24 24 24 24 24 24 23 24 24 24 23 24 28 28 28 28 28 28 54 20 Class Distribution -------------------- 30% | Hauler-Sprinter 26% | Hauler-Mutant 10% | Machinist-Sprinter 8% | Hacker-Sprinter 5% | Mutant 4% | Hacker-Mutant 3% | Wizard-Sprinter Dominant Class ---------------- Hauler-Mutant | -10/Materials Hauler-Mutant | -10/Mines Hauler-Mutant | -9/Materials Hauler-Mutant | -9/Mines Hauler-Mutant | -9/Exiles Hauler-Mutant | -8/Mines Hauler-Mutant | -8/Materials Hacker-Sprinter | -7/Factory Hacker-Sprinter | -7/Lower Caves Hacker-Sprinter | -7/Lower Caves Hauler-Mutant | -7/Zion Hauler-Sprinter | -6/Proximity Caves Hauler-Sprinter | -6/Factory Hauler-Scout | -6/Waste Hauler-Scout | -6/Factory Hacker-Sprinter | -6/Lower Caves Hacker-Sprinter | -6/Lower Caves Hacker-Sprinter | -6/Data Miner Hacker-Sprinter | -5/Proximity Caves Hacker-Mutant | -5/Factory Wizard-Mutant | -5/Waste Hacker-Mutant | -5/Factory Machinist-Mutant | -5/Extension Commander-Mutant | -5/Cetus Commander-Mutant | -5/Archives Commander-Mutant | -5/Hub_04(d) Hacker-Mutant | -4/Factory Hacker-Mutant | -4/Armory Machinist-Scout | -4/Lab Machinist-Sprinter | -3/Research Machinist-Scout | -3/Quarantine Machinist-Sprinter | -3/Section 7 Hacker-Sprinter | -2/Research Machinist-Scout | -2/Testing Wizard-Sprinter | -1/Access Hauler-Sprinter | -1/Command Machinist-Sprinter | -1/Access_0 Resources | -11 -10 -10 -9 -9 -9 -8 -8 -7 -7 -7 -7 -6 -6 -6 -6 -6 -6 -6 -5 -5 -5 -5 -5 -5 -5 -5 -4 -4 -4 -3 -3 -3 -2 -2 -1 -1 -1 ----------- Run | Scr Mat Min Mat Min Exi Min Mat Fac Low Low Zio Pro Fac Was Fac Low Low Dat Pro Fac Was Fac Ext Cet Arc Hub Fac Arm Lab Res Qua Sec Res Tes Acc Com Ac0 Matter Collected 24979 | 216 470 110 105 58 1077 25 988 81 308 30 2300 52 235 129 146 78 . . 52 348 . 1109 808 252 178 152 294 358 140 1022 369 1386 441 1817 2716 4706 2423 Remotely . | . . . . . . . . . . . . . . . . . . . . . . . . . . . . . . . . . . . . . . Salvage Created 30320 | 83 776 150 841 76 571 42 2442 81 84 . . . 157 133 270 . . . . 160 . 1680 1540 672 370 512 195 453 . 2244 507 1205 730 4209 4770 3241 2126 Parts 1587 | 2 67 13 37 5 44 6 146 4 . . . . 11 5 14 . . . . 4 . 77 62 32 21 23 9 27 . 99 31 79 35 181 294 127 132 Haulers Intercepted 19 | . 1 . 1 . . . 6 . . . . . . . 1 . . . . . . 1 . . . 1 . . . 4 . . 1 . 3 . . Recyclers Shooed 16 | . . . 1 . . . 3 . . . . . 1 . 1 . . . . . . 3 2 . . . 1 . . . . 1 . . 3 . . Parts Field Recycled . | . . . . . . . . . . . . . . . . . . . . . . . . . . . . . . . . . . . . . . Retrieved Matter . | . . . . . . . . . . . . . . . . . . . . . . . . . . . . . . . . . . . . . . Parts Self-Destructed 63 | . . . . . . . . . 7 6 . . . . . 6 2 . 42 . . . . . . . . . . . . . . . . . . Prevented 1 | . . . . . . . . . . . . . . . . 1 . . . . . . . . . . . . . . . . . . . . . Kills | -11 -10 -10 -9 -9 -9 -8 -8 -7 -7 -7 -7 -6 -6 -6 -6 -6 -6 -6 -5 -5 -5 -5 -5 -5 -5 -5 -4 -4 -4 -3 -3 -3 -2 -2 -1 -1 -1 ------- Run | Scr Mat Min Mat Min Exi Min Mat Fac Low Low Zio Pro Fac Was Fac Low Low Dat Pro Fac Was Fac Ext Cet Arc Hub Fac Arm Lab Res Qua Sec Res Tes Acc Com Ac0 Combat Hostiles Destroyed 316 | . 19 5 15 2 5 4 47 . . . . . 5 . . . . . . 1 . 6 13 7 2 5 . 7 . 16 3 13 5 37 51 24 24 Melee 6 | . . . . . . . . . . . . . . . . . . . . . . . . . . . . 1 . . . . . 1 . 4 . Guns 241 | . 9 . 14 . 1 . 24 . . . . . 1 . . . . . . . . 6 13 . 2 5 . 6 . 16 3 13 4 36 51 16 21 Cannons 4 | . 3 . . . . . . . . . . . . . . . . . . . . . . . . . . . . . . . 1 . . . . AOE 51 | . 7 5 1 2 4 4 18 . . . . . 4 . . . . . . 1 . . . 2 . . . . . . . . . . . . 3 Classes Destroyed 22 | 1 8 . 2 . 3 . 4 . 1 . . . . 1 . . . . . . . . . . . . . . . . . . . 1 . 1 . Worker 34 | . 7 1 2 . . 1 . 3 . . . . . . . . . . . 1 . 2 . . . 1 . . . 4 . . 1 4 6 1 . Builder 31 | . 1 . . . . . 3 . . . . . . . . . . . . . . 4 1 . . . 2 . . 4 1 4 . 5 6 . . Tunneler 5 | . 1 . . . . . . 1 . . . . . . . . . . . 1 . 2 . . . . . . . . . . . . . . . Hauler 19 | . 1 . 1 . . . 6 . . . . . . . 1 . . . . . . 1 . . . 1 . . . 4 . . 1 . 3 . . Recycler 28 | 1 . 1 2 . . . 1 . . . . . . . 1 . . . . 1 . 7 3 . . . 1 . . 2 1 . . 3 3 1 . Carrier 1 | . . . . . . . . . . . . . . . . . . . . . . . . . . . . . . . . . . 1 . . . Mechanic 2 | . . . 1 . . . . . . . . . . . . . . . . . . . . . . . . . . . . . . 1 . . . Operator 14 | . 1 . . . . . 2 . . . . . 1 . 1 . . . . . . . . . 3 . . 1 . 1 . 1 . 2 1 . . Turret 1 | . . . . . 1 . . . . . . . . . . . . . . . . . . . . . . . . . . . . . . . . Watcher 33 | . 1 . . . . . 4 . . . . . 1 . . . . . . . . 1 1 2 . 1 . 2 . 2 3 1 3 3 6 2 . Swarmer 55 | . 3 3 3 . . 4 12 . . . . . 4 . . . . . . 1 . . . . . . . 4 . 3 . 1 . 1 16 . . Grunt 97 | . 16 2 10 2 . . 22 . . . . . . . . . . . . . . 3 6 . . 3 . 1 . 10 1 3 . 14 4 . . Brawler 5 | . . . . . . . 1 . . . . . . . . . . . . . . 1 . . . . . . . . . . . 2 1 . . Duelist 2 | . . . . . . . 1 . . . . . . . . . . . . . . . . . . . . . . . . . . 1 . . . Protector 2 | . . . . . . . 1 . . . . . . . . . . . . . . . . . . . . . . . . . . 1 . . . Sentry 42 | . . . 2 . . . 9 . . . . . 1 . . . . . . . . 2 7 . 2 2 . 1 . 2 . 4 4 . 5 1 . Demolisher 1 | . . . . . . . . . . . . . . . . . . . . . . . . . . . . . . . . . . . . 1 . Hunter 32 | . . . . . . . 1 . . . . . . . . . . . . . . . . . . . . . . 1 . 2 . 13 12 3 . Programmer 37 | . . . . . . . . . 2 . . . . . . . . . . . . . . . . . . 1 . . 2 3 1 4 13 11 . Cetus Guard 7 | . . . . . . . . . . . . . . . . . . . . . . . . 7 . . . . . . . . . . . . . M Guard 2 | . . . . . . . . . . . . . . . . . . . . . . . . . . . . . . . . . . . . 2 . Enhanced Grunt 16 | . . . . . . . . . . . . . . . . . . . . . . . . . . . . . . . . . . . . . 16 Enhanced Hunter 6 | . . . . . . . . . . . . . . . . . . . . . . . . . . . . . . . . . . . . . 6 Combat Programmer 2 | . . . . . . . . . . . . . . . . . . . . . . . . . . . . . . . . . . . . 2 . Striker 1 | . . . . . . . . . . . . . . . . . . . . . . . . . . . . . . . . . . . . 1 . Protovariant P 1 | . . . . . . . . . . . . . . . . . . . . . . . . . . . . . . . . . . 1 . . . Zionite 6 | . . . . . 6 . . . . . . . . . . . . . . . . . . . . . . . . . . . . . . . . Assembled 7 | . . . . . 7 . . . . . . . . . . . . . . . . . . . . . . . . . . . . . . . . Wasp 1 | . . . . . . . . . . . . . . . 1 . . . . . . . . . . . . . . . . . . . . . . Thug 2 | . . . . . . . . . . . . . . . . . . . . . . . 1 . 1 . . . . . . . . . . . . Martyr 1 | . . . . . . . . . . . . . . 1 . . . . . . . . . . . . . . . . . . . . . . . Wizard 1 | . . . . . . . . . . . . . . . . . . . . . . . . . . . . . . . . . . . . 1 . Best Kill Streak 15 | 1 5 3 7 2 4 4 11 4 . . . . 5 . 1 . . . . 1 . 4 4 5 3 3 1 4 . 15 3 8 4 10 10 3 4 Combat Bots Only 9 | . 4 3 4 2 4 4 7 . . . . . 5 . . . . . . 1 . 2 4 4 2 2 . 4 . 4 2 6 2 9 5 2 4 Max Kills in Single Turn 5 | 1 4 2 1 2 3 3 5 1 1 . . . 2 1 1 . . . . 1 . 2 1 2 2 1 1 1 . 2 2 1 2 3 3 2 2 Gunslinging 1 | . . . . . . . 1 . . . . . . . . . . . . . . . . . . . . . . . . . . 1 . 1 . Exploded 5 | . 3 2 1 2 3 3 5 . . . . . 2 . . . . . . 1 . . . 2 . . . . . . . . . . . . 1 Melee 1 | . . . . . . . . . . . . . . . . . . . . . . . . . . . . 1 . . . . . 1 . 1 . Uniques/NPCs Destroyed 9 | . . . . . 4 . . . . . . . . . . . . . . . . . . 1 . . . . . . . . . . . 2 2 8R-AWN (-9/Exiles) EX-HEX (-9/Exiles) EX-DEC (-9/Exiles) EX-BIN (-9/Exiles) A7 (-5/Cetus) MAIN.C Shell (-1/Command) MAIN.C (-1/Command) A8 (-1/Access_0) A2 (-1/Access_0) Combat | -11 -10 -10 -9 -9 -9 -8 -8 -7 -7 -7 -7 -6 -6 -6 -6 -6 -6 -6 -5 -5 -5 -5 -5 -5 -5 -5 -4 -4 -4 -3 -3 -3 -2 -2 -1 -1 -1 -------- Run | Scr Mat Min Mat Min Exi Min Mat Fac Low Low Zio Pro Fac Was Fac Low Low Dat Pro Fac Was Fac Ext Cet Arc Hub Fac Arm Lab Res Qua Sec Res Tes Acc Com Ac0 Damage Taken 13551 | . 457 6 605 . 601 78 1724 . 142 41 . 214 60 . 64 15 . . 19 165 54 210 218 95 29 33 68 359 . 166 338 708 64 802 1256 1554 3406 Core 2534 | . 90 . 171 . 103 7 324 . 28 18 . 93 17 . 11 15 . . . 44 54 110 35 12 . 20 27 116 . 40 50 240 . 111 175 77 546 Absorbed by Shields 3078 | . . . . . . . . . . . . . . . . . . . . . . . 45 92 . . . . . . . . . . . 659 2282 Reduced by Siege Mode 6 | . . . . . . . . . . . . . . . . . . . . . . . . . . . . . . . . . . . . . 6 Core Remaining (%) 69 | 100 . 64 . . . 29 41 . . . . 80 . . . . . . 94 . . . . . . 72 . . 87 . . 74 . 92 . . 32 Volleys Fired 1165 | 6 68 4 58 2 70 6 122 . 10 . 29 2 4 . 5 3 2 . . 8 . 36 48 6 4 17 12 24 . 68 20 44 32 108 150 66 131 Largest 2 | 2 2 2 2 2 2 2 2 . 2 . 1 1 2 . 2 1 1 . . 2 . 2 2 2 2 1 2 2 . 2 2 2 2 2 2 2 2 Hottest 122 | 70 70 80 90 90 60 60 122 . 60 . 57 33 60 . 60 30 30 . . 60 . 60 60 86 60 30 60 60 . 60 100 100 100 100 100 100 100 Shots Fired 2049 | 11 127 8 102 4 104 8 216 . 11 . 29 2 5 . 8 3 2 . . 10 . 71 91 12 8 17 21 26 . 132 36 77 60 203 286 108 251 Gun 1894 | 11 98 2 102 2 88 4 198 . 11 . 13 . 2 . 6 3 2 . . 9 . 71 90 . 8 17 21 26 . 132 35 67 56 191 280 105 244 Cannon 67 | . 15 . . . . . . . . . 16 . . . . . . . . . . . . . . . . . . . 1 10 4 12 6 3 . Launcher 74 | . 14 6 . 2 6 4 16 . . . . 2 3 . . . . . . 1 . . 1 12 . . . . . . . . . . . . 7 Special 14 | . . . . . 10 . 2 . . . . . . . 2 . . . . . . . . . . . . . . . . . . . . . . Kinetic 1594 | 6 70 . . . 88 . 25 . 11 . 29 . 2 . 6 3 2 . . 9 . 71 90 . 8 17 21 26 . 132 35 67 56 191 280 105 244 Thermal 121 | 5 34 . . . 10 . 34 . . . . . . . 2 . . . . . . . . . . . . . . . 1 10 4 12 6 3 . Explosive 58 | . 14 6 . 2 6 4 13 . . . . 2 3 . . . . . . 1 . . . . . . . . . . . . . . . . 7 Electromagnetic 276 | . 9 2 102 2 . 4 144 . . . . . . . . . . . . . . . 1 12 . . . . . . . . . . . . . Robot Hit Streak 29 | 4 10 11 7 . 15 3 13 . 2 . . . 1 . 3 3 . . . 5 . 7 14 4 4 5 14 7 . 15 7 24 20 29 20 21 21 Robot Miss Streak 7 | 1 4 1 3 2 3 2 5 . 3 . . . 1 . 2 . . . . 3 . 5 2 . 2 2 1 2 . 2 3 3 4 4 5 2 7 Penetration Max 2 | . . . . . 1 . 1 . . . . . . . 1 . . . . . . 2 1 . 2 . . 1 . 2 1 1 1 2 2 1 2 Secondary Targets 15 | . 1 . 1 . . . 4 . . . . . . . . . . . . . . . . . . . . . . . 1 . . 2 3 1 2 Max Gunslinging Chain 1 | . 1 . 1 . . . 1 . . . . . . . . . . . . . . . . . . . . . . . 1 . . 1 1 1 1 Shots Hit Robots 1399 | 8 81 2 60 . 73 4 143 8 20 . . . 7 3 9 3 . . 1 9 . 47 65 12 9 13 21 17 . 76 17 51 29 138 164 129 180 Core Hits 936 | 2 53 8 28 2 36 6 102 4 4 . . . 8 2 5 . . . . 7 . 30 32 28 9 9 4 13 . 49 12 30 15 96 119 61 162 Critical Hits 759 | . . . . . 31 . 4 . 2 . . . 1 . 3 . . . . 2 . 31 42 . 5 7 2 9 . 54 13 28 21 103 142 71 188 Critical Kills 260 | . . . . . 5 . 2 . . . . . 1 . 2 . . . . . . 10 16 . 4 6 1 4 . 24 7 15 10 50 65 18 20 Critical Parts Destroyed 370 | . . . . . 7 . 2 . 2 . . . . . 1 . . . . 1 . 16 18 . 1 1 1 5 . 26 6 11 10 50 75 39 98 Melee Attacks 479 | . . . . . . . . 9 19 . 22 . 30 3 16 . 4 . 2 15 . 48 6 26 8 8 25 17 18 12 17 69 . 11 13 79 2 Kinetic 8 | . . . . . . . . . . . . . . . . . . . . . . . . . . . . . . . . . . . . 8 . Impact . | . . . . . . . . . . . . . . . . . . . . . . . . . . . . . . . . . . . . . . Slashing 245 | . . . . . . . . 9 19 . 22 . . . 16 . 4 . 1 8 . . . . . . . . . . 3 69 . 11 12 71 . Piercing 226 | . . . . . . . . . . . . . 30 3 . . . . 1 7 . 48 6 26 8 8 25 17 18 12 14 . . . 1 . 2 Sneak Attacks 70 | . . . . . . . . 4 15 . . . 2 2 3 . . . 1 3 . 12 2 11 3 1 3 . . 1 2 2 . 3 . . . Combat Hostiles 3 | . . . . . . . . . . . . . . . . . . . . . . . . . . . . . . . . . . 3 . . . Follow-up Attacks . | . . . . . . . . . . . . . . . . . . . . . . . . . . . . . . . . . . . . . . Damage Inflicted 43075 | 84 1760 383 980 94 1571 204 4232 569 229 . . . 665 236 748 11 . . 76 724 . 2797 1882 2422 660 339 504 593 . 1807 852 2002 651 3306 2616 5271 4807 Guns 21543 | 84 730 13 806 . 1064 31 2603 . 94 . . . 15 . 79 11 . . . 32 . 884 1411 . 164 234 112 405 . 1717 354 976 552 2545 2616 1343 2668 Cannons 295 | . 146 . . . . . . . . . . . . . . . . . . . . . . . . . . . . . . . 99 50 . . . Explosions 7699 | . 884 370 174 94 409 173 1608 . . . . . 399 . . . . . . 107 . . . 1342 . . . . . . . . . . . . 2139 Melee 13387 | . . . . . . . . 569 135 . . . 251 236 637 . . . 76 585 . 1913 471 1080 496 105 392 188 . 90 498 1026 . 711 . 3928 . Ramming 8 | . . . . . . . . . . . . . . . 8 . . . . . . . . . . . . . . . . . . . . . . Kinetic 18138 | 34 409 . . . 1064 . 254 . 94 . . . 15 . 79 11 . . . 32 . 884 1411 . 164 234 112 405 . 1717 354 976 552 2545 2616 1508 2668 Thermal 1761 | 50 370 64 174 . 98 . 583 . . . . . . . 24 . . . . . . . . 249 . . . . . . . . 99 50 . . . Explosive 5884 | . 863 306 . 94 409 173 1394 . . . . . 399 . . . . . . 107 . . . . . . . . . . . . . . . . 2139 Electromagnetic 4062 | . 118 13 806 . . 31 2001 . . . . . . . . . . . . . . . . 1093 . . . . . . . . . . . . . Impact . | . . . . . . . . . . . . . . . . . . . . . . . . . . . . . . . . . . . . . . Slashing 7547 | . . . . . . . . 569 135 . . . . . 637 . . . . 208 . . . . . . . . . . 498 1026 . 711 . 3763 . Piercing 5675 | . . . . . . . . . . . . . 251 236 . . . . 76 377 . 1913 471 1080 496 105 392 188 . 90 . . . . . . . Highest Corruption 5 | . . . . . . . 3 . . . . . . . 1 1 1 1 1 . 5 5 . . . . . . . . 1 2 . . 1 2 . Average Corruption 2 | . . . . . . . 3 . . . . . . . 1 1 1 1 1 . 5 2 . . . . . . . . 1 1 . . 1 1 . Corruption Purged 11 | . . . . . . . . . . . . . . . . . . . . . . 5 . . . . . . . . . 1 . . 1 4 . Effects 91 | . . . . . . . 67 . . . . . . . 2 . 2 . . . 1 3 . . . . . . . . 1 10 . . 1 4 . Message Errors 27 | . . . . . . . 16 . . . . . . . . . . . . . 1 2 . . . . . . . . . 6 . . . 2 . Matter Fused 14 | . . . . . . . 14 . . . . . . . . . . . . . . . . . . . . . . . . . . . . . . Heat Flow Errors 14 | . . . . . . . 13 . . . . . . . . . . . . . . . . . . . . . . . . . . . . 1 . Energy Discharges 12 | . . . . . . . 7 . . . . . . . 1 . 2 . . . . 1 . . . . . . . . . 1 . . . . . Data Loss (minor) 12 | . . . . . . . 8 . . . . . . . 1 . . . . . . . . . . . . . . . 1 1 . . 1 . . Targeting Errors 10 | . . . . . . . 8 . . . . . . . . . . . . . . . . . . . . . . . . 1 . . . 1 . Weapon Failures 2 | . . . . . . . 1 . . . . . . . . . . . . . . . . . . . . . . . . 1 . . . . . Overload Shots . | . . . . . . . . . . . . . . . . . . . . . . . . . . . . . . . . . . . . . . Overflow Damage 2647 | . 34 6 6 . 12 3 1 223 . . . . 69 . 190 . . . 36 231 . 408 60 140 218 . . . . . 258 455 . 226 . 3 68 Projectiles 1 | . 1 . . . . . . . . . . . . . . . . . . . . . . . . . . . . . . . . . . . . Explosions 159 | . 33 6 6 . 12 3 1 . . . . . 26 . . . . . . . . . . 4 . . . . . . . . . . . . 68 Melee 2487 | . . . . . . . . 223 . . . . 43 . 190 . . . 36 231 . 408 60 136 218 . . . . . 258 455 . 226 . 3 . Knockbacks 3 | . 3 . . . . . . . . . . . . . . . . . . . . . . . . . . . . . . . . . . . . Impact . | . . . . . . . . . . . . . . . . . . . . . . . . . . . . . . . . . . . . . . Kinetic 3 | . 3 . . . . . . . . . . . . . . . . . . . . . . . . . . . . . . . . . . . . Secondary . | . . . . . . . . . . . . . . . . . . . . . . . . . . . . . . . . . . . . . . Self-Inflicted Damage 69 | . . . . . . . 65 . . . . . . . 4 . . . . . . . . . . . . . . . . . . . . . . Shots 2 | . . . . . . . 2 . . . . . . . . . . . . . . . . . . . . . . . . . . . . . . Rammed 1 | . . . . . . . . . . . . . . . 1 . . . . . . . . . . . . . . . . . . . . . . Targets Rammed 1 | . . . . . . . . . . . . . . . 1 . . . . . . . . . . . . . . . . . . . . . . Kicked . | . . . . . . . . . . . . . . . . . . . . . . . . . . . . . . . . . . . . . . Crushed . | . . . . . . . . . . . . . . . . . . . . . . . . . . . . . . . . . . . . . . Highest Temperature 324 | 50 164 18 171 24 168 . 324 . 4 . 96 . . . 25 . . . . . . . 8 24 . . . . . 18 . . . . . 104 . Average Temperature 59 | 23 47 12 57 12 57 . 74 . 4 . 49 . . . 8 . . . . . . . 6 12 . . . . . 5 . . . . . 57 . Received Heat Transfer 1999 | . 252 . 246 . . . 756 . 21 21 . 54 . . 6 . . . 9 9 . 45 12 . . . 18 45 . 30 9 54 9 63 . 58 282 Effects 1 | . . . . . . . 1 . . . . . . . . . . . . . . . . . . . . . . . . . . . . . . Interference 1 | . . . . . . . 1 . . . . . . . . . . . . . . . . . . . . . . . . . . . . . . Siege Activations 1 | . . . . . . . . . . . . . . . . . . . . . . . . . . . . . . . . . . . . . 1 Total Turns 9 | . . . . . . . . . . . . . . . . . . . . . . . . . . . . . . . . . . . . . 9 Longest Duration 9 | . . . . . . . . . . . . . . . . . . . . . . . . . . . . . . . . . . . . . 9 Robots Corrupted 10 | . . . . . . . 5 . . . . . . . . . . . . . . . . 5 . . . . . . . . . . . . . Combat Hostiles 10 | . . . . . . . 5 . . . . . . . . . . . . . . . . 5 . . . . . . . . . . . . . Parts Fried 32 | . . . 3 . . . 14 . . . . . . . . . . . . . . . . 13 . 2 . . . . . . . . . . . Impact Corruptions . | . . . . . . . . . . . . . . . . . . . . . . . . . . . . . . . . . . . . . . Robots Melted . | . . . . . . . . . . . . . . . . . . . . . . . . . . . . . . . . . . . . . . Combat Hostiles . | . . . . . . . . . . . . . . . . . . . . . . . . . . . . . . . . . . . . . . Parts Melted 6 | . 2 . . . . . 4 . . . . . . . . . . . . . . . . . . . . . . . . . . . . . . Heat Transferred 3499 | 148 1086 100 250 . 333 . 1147 . . . . . . . 74 . . . . . . . . 250 . . . . . . . . 74 37 . . . Parts Sabotaged . | . . . . . . . . . . . . . . . . . . . . . . . . . . . . . . . . . . . . . . Parts Stolen 1 | . . . . . . . . . 1 . . . . . . . . . . . . . . . . . . . . . . . . . . . . Parts Stripped . | . . . . . . . . . . . . . . . . . . . . . . . . . . . . . . . . . . . . . . Power Chain Reactions 9 | . 1 1 4 . . . 1 . . . . . . . . . . . . . . . . 2 . . . . . . . . . . . . . Missiles Intercepted . | . . . . . . . . . . . . . . . . . . . . . . . . . . . . . . . . . . . . . . Alert | -11 -10 -10 -9 -9 -9 -8 -8 -7 -7 -7 -7 -6 -6 -6 -6 -6 -6 -6 -5 -5 -5 -5 -5 -5 -5 -5 -4 -4 -4 -3 -3 -3 -2 -2 -1 -1 -1 ------- Run | Scr Mat Min Mat Min Exi Min Mat Fac Low Low Zio Pro Fac Was Fac Low Low Dat Pro Fac Was Fac Ext Cet Arc Hub Fac Arm Lab Res Qua Sec Res Tes Acc Com Ac0 Peak Influence 1337 | 5 298 245 319 152 . 109 771 344 . . . . 332 45 1018 . . . . 801 156 572 351 622 425 607 231 164 . 405 378 471 842 1229 1337 919 . Initial 759 | . 3 115 17 102 . . 42 270 . . . . . 45 31 . . . . 396 156 102 5 133 248 86 210 29 . . 227 11 264 346 586 759 . Average 309 | 2 157 156 174 133 . 93 315 314 . . . . 152 45 540 . . . . 498 155 215 132 495 329 271 123 86 . 159 189 150 500 721 635 327 . Maximum Alert Level 4 | . 1 1 1 . . . 3 1 . . . . 1 . 3 . . . . 3 . 2 1 2 2 2 1 . . 2 1 2 3 4 4 3 . Low Security (%) 19 | 100 75 50 57 100 . 100 38 . . . . . 69 100 17 . . . . 16 100 71 76 7 . 54 71 100 . 57 48 75 22 . 4 1 . Level 1 67 | . 24 49 42 . . . 23 100 . . . . 30 . 11 . . . . 1 . 7 23 24 50 23 28 . . 41 51 11 . 4 24 97 . Level 2 9 | . . . . . . . 34 . . . . . . . 40 . . . . 65 . 21 . 67 49 22 . . . 1 . 12 62 44 46 . . Level 3 2 | . . . . . . . 3 . . . . . . . 30 . . . . 16 . . . . . . . . . . . . 14 47 3 . . Level 4 . | . . . . . . . . . . . . . . . . . . . . . . . . . . . . . . . . . . 3 20 . . Level 5 . | . . . . . . . . . . . . . . . . . . . . . . . . . . . . . . . . . . . . . . High Security . | . . . . . . . . . . . . . . . . . . . . . . . . . . . . . . . . . . . . . . Max Security . | . . . . . . . . . . . . . . . . . . . . . . . . . . . . . . . . . . . . . . Squads Dispatched 107 | . 6 . 2 . . . 7 . . . . . 6 . 3 . . . . 5 . 10 4 1 . 7 3 2 . 6 1 7 3 17 12 5 . Investigation 36 | . 4 . 2 . . . 3 . . . . . 4 . 1 . . . . 2 . 3 1 1 . 6 . 1 . 4 . . . . 3 1 . Extermination 24 | . . . . . . . . . . . . . 1 . . . . . . 2 . 2 . . . . 2 1 . . 1 5 . 2 4 4 . Reinforcement 32 | . 2 . . . . . 3 . . . . . 1 . 2 . . . . 1 . 5 3 . . . 1 . . 2 . 1 1 10 . . . Assault 12 | . . . . . . . 1 . . . . . . . . . . . . . . . . . . 1 . . . . . . 2 5 3 . . Garrison 3 | . . . . . . . . . . . . . . . . . . . . . . . . . . . . . . . . 1 . . 2 . . Intercept . | . . . . . . . . . . . . . . . . . . . . . . . . . . . . . . . . . . . . . . Construction Impeded 3 | . . . . . . . 1 . . . . . . . . . . . . . . 2 . . . . . . . . . . . . . . . Haulers Reinforced 3 | . . . . . . . . . . . . . . . . . . . . . . 1 . . . . . . . 1 . . 1 . . . . Stealth | -11 -10 -10 -9 -9 -9 -8 -8 -7 -7 -7 -7 -6 -6 -6 -6 -6 -6 -6 -5 -5 -5 -5 -5 -5 -5 -5 -4 -4 -4 -3 -3 -3 -2 -2 -1 -1 -1 --------- Run | Scr Mat Min Mat Min Exi Min Mat Fac Low Low Zio Pro Fac Was Fac Low Low Dat Pro Fac Was Fac Ext Cet Arc Hub Fac Arm Lab Res Qua Sec Res Tes Acc Com Ac0 Distress Signals 49 | . 2 . 2 . . . 2 . . . . . . . . . . . . 2 . 1 3 2 . 3 1 2 . 6 . 1 1 . 1 20 . Communications Jammed 93 | . . . . . . . . . . . . . 4 . . . . . . 19 . . . . . 40 . . . . . 4 21 5 . . . Distress Signals 93 | . . . . . . . . . . . . . 4 . . . . . . 19 . . . . . 40 . . . . . 4 21 5 . . . Times Spotted 658 | . 33 4 28 2 21 4 77 . 27 3 . 12 24 . 10 2 . . 6 17 4 14 24 11 7 27 9 17 . 31 6 27 11 47 73 39 41 Peak Tracking Total 11 | . 5 3 4 2 6 4 7 . 3 3 . 9 6 . 4 3 . . 4 4 4 6 4 5 2 11 7 9 . 11 2 10 4 10 6 7 8 Tactical Retreats 90 | . . . 6 . 6 . 5 . 3 1 . 2 5 . . 1 . . 1 1 . 7 4 1 . . 1 3 . 3 1 8 2 . 12 13 4 Traps | -11 -10 -10 -9 -9 -9 -8 -8 -7 -7 -7 -7 -6 -6 -6 -6 -6 -6 -6 -5 -5 -5 -5 -5 -5 -5 -5 -4 -4 -4 -3 -3 -3 -2 -2 -1 -1 -1 ------- Run | Scr Mat Min Mat Min Exi Min Mat Fac Low Low Zio Pro Fac Was Fac Low Low Dat Pro Fac Was Fac Ext Cet Arc Hub Fac Arm Lab Res Qua Sec Res Tes Acc Com Ac0 Traps Triggered 44 | . . . 1 . . . . . . . . . 1 . 1 . . . . 3 . 3 2 . . . . 1 . . . 2 1 1 5 23 . Indirectly 2 | . . . . . . . . . . . . . . . . . . . . . . . 2 . . . . . . . . . . . . . . Trap Hack Attempts . | . . . . . . . . . . . . . . . . . . . . . . . . . . . . . . . . . . . . . . Triggered . | . . . . . . . . . . . . . . . . . . . . . . . . . . . . . . . . . . . . . . Disarmed 9 | . . . . . . . . . . . . . . . 5 . . . . . . . . . . 4 . . . . . . . . . . . Reprogrammed 20 | . . . . . . . . . . . . . 1 . . . . . . . . . 6 . . . . 3 . . . 4 . . . 6 . Reused 7 | . . . . . . . . . . . . . . . . . . . . . . . 2 . . . . 1 . . . 2 . . . 2 . Traps Extracted . | . . . . . . . . . . . . . . . . . . . . . . . . . . . . . . . . . . . . . . Installed . | . . . . . . . . . . . . . . . . . . . . . . . . . . . . . . . . . . . . . . Triggered 10 | . . . 1 . . . . . . . . 1 . . . 1 . . . . . . 2 . . . . 1 . . . 2 . . . 2 . Machines | -11 -10 -10 -9 -9 -9 -8 -8 -7 -7 -7 -7 -6 -6 -6 -6 -6 -6 -6 -5 -5 -5 -5 -5 -5 -5 -5 -4 -4 -4 -3 -3 -3 -2 -2 -1 -1 -1 ---------- Run | Scr Mat Min Mat Min Exi Min Mat Fac Low Low Zio Pro Fac Was Fac Low Low Dat Pro Fac Was Fac Ext Cet Arc Hub Fac Arm Lab Res Qua Sec Res Tes Acc Com Ac0 Machines Disabled 63 | . 1 . 1 . 11 . 1 . . . . . 2 . 1 . . . . 4 . 1 . 2 2 2 1 4 4 . 3 7 . 10 . 4 2 Max in Single Turn 2 | . 1 . 1 . 2 . 1 . . . . . 1 . . . . . . 2 . 1 . 1 1 1 1 1 1 . 1 1 . 1 . 2 1 Garrison Access 13 | . . . . . . . 1 . . . . . . . . . . . . 1 . . . . . 2 . . . 3 1 . 1 1 3 . . Phase Generator 1 | . . . . . . . . . . . . . . . . . . . . . . . . . . . . . . . . . . . . 1 . Network Hub 4 | . . . . . . . . . . . . . . . . . . . . . . . . . . 4 . . . . . . . . . . . Machines Sabotaged 4 | . . . . . . . . . . . . . . . . . . . . . . . . . . 4 . . . . . . . . . . . Garrisons Compromised . | . . . . . . . . . . . . . . . . . . . . . . . . . . . . . . . . . . . . . . Overloaded Fab Kills . | . . . . . . . . . . . . . . . . . . . . . . . . . . . . . . . . . . . . . . Fab Network Shutdowns 6 | . . . . . . . . . . . . . . . 1 . . . . 1 . 1 . . . . . . . 1 . . 1 . 1 . . Hacking | -11 -10 -10 -9 -9 -9 -8 -8 -7 -7 -7 -7 -6 -6 -6 -6 -6 -6 -6 -5 -5 -5 -5 -5 -5 -5 -5 -4 -4 -4 -3 -3 -3 -2 -2 -1 -1 -1 --------- Run | Scr Mat Min Mat Min Exi Min Mat Fac Low Low Zio Pro Fac Was Fac Low Low Dat Pro Fac Was Fac Ext Cet Arc Hub Fac Arm Lab Res Qua Sec Res Tes Acc Com Ac0 Machines Accessed 202 | . 6 . 2 2 3 . 13 6 . 1 . . 20 . 5 . . 4 . 15 . 11 11 5 . 11 6 6 1 14 7 13 5 11 17 6 1 Terminals 125 | . 3 . 1 1 . . 8 4 . . . . 13 . 4 . . . . 10 . 7 11 5 . 10 3 5 . 6 3 11 2 4 8 6 . Fabricators 19 | . . . . . . . . 1 . . . . 4 . 1 . . . . 3 . 2 . . . . 1 1 . 2 . . 1 2 1 . . Repair Stations 13 | . 1 . . . . . 2 . . . . . . . . . . . . 1 . . . . . . 2 . . 1 1 . . 2 3 . . Recycling Units 7 | . 2 . 1 . . . . 1 . . . . 1 . . . . . . . . 1 . . . . . . . . . . . . 1 . . Scanalyzers 13 | . . . . . . . 2 . . . . . . . . . . . . . . 1 . . . . . . . 2 2 2 1 2 1 . . Garrison Access 14 | . . . . . . . 1 . . . . . 2 . . . . . . 1 . . . . . 1 . . . 3 1 . 1 1 3 . . Total Hacks 1187 | . 16 . 3 4 3 . 43 40 . 1 . . 72 . 17 . . 24 . 57 . 70 59 33 . 70 49 63 1 113 40 85 33 119 117 51 4 Successful 684 | . 13 . 1 1 3 . 18 19 . 1 . . 35 . 11 . . 24 . 44 . 48 44 16 . 45 37 39 1 63 22 36 18 46 64 31 4 Failed 498 | . 3 . 2 3 . . 25 20 . . . . 37 . 6 . . . . 13 . 21 14 17 . 24 11 24 . 50 18 49 15 73 53 20 . Catastrophic 74 | . 1 . 1 1 . . 3 1 . . . . 8 . 1 . . . . 2 . . . 6 . 1 2 3 . 4 1 10 2 15 6 6 . Database Lockouts 5 | . . . . . . . . 1 . . . . . . . . . . . . . 1 1 . . 1 1 . . . . . . . . . . Manual 650 | . 9 . 3 3 1 . 13 29 . . . . 50 . 11 . . . . 35 . 39 51 33 . 45 27 40 . 31 22 43 24 47 56 38 . Terminals 792 | . 8 . 1 3 . . 21 30 . . . . 52 . 13 . . . . 39 . 45 59 33 . 69 31 55 . 55 22 80 12 52 61 51 . Fabricators 111 | . . . . . . . . 6 . . . . 13 . 4 . . . . 13 . 19 . . . . 7 8 . 11 . . 8 13 9 . . Repair Stations 113 | . 6 . . . . . 6 . . . . . . . . . . . . 4 . . . . . . 11 . . 8 8 . . 39 31 . . Recycling Units 25 | . 2 . 2 . . . . 4 . . . . 4 . . . . . . . . 4 . . . . . . . . . . . . 9 . . Scanalyzers 73 | . . . . . . . 15 . . . . . . . . . . . . . . 2 . . . . . . . 33 6 5 1 9 2 . . Garrison Access 39 | . . . . . . . 1 . . . . . 3 . . . . . . 1 . . . . . 1 . . . 6 4 . 12 6 5 . . Terminal Hacks 284 | . 3 . . 1 3 . 2 11 . 1 . . 12 . 5 . . 24 . 18 . 18 24 7 . 23 14 22 1 15 4 20 4 10 19 19 4 Record 21 | . 1 . . . 2 . . . . . . . . . . . . 11 . . . . . 1 . . 1 . 1 . . 3 . . 1 . . Part Schematic 35 | . . . . . . . . 1 . . . . 3 . . . . 6 . 6 . 2 1 1 . 4 3 3 . . . 1 . . 4 . . Robot Schematic 7 | . . . . . . . 1 1 . . . . . . . . . 4 . . . . . 1 . . . . . . . . . . . . . Robot Analysis 24 | . 2 . . . . . . 1 . . . . 1 . . . . . . 1 . . 3 3 . . . 1 . 3 . 5 . 1 . 3 . Prototype ID Bank 9 | . . . . . . . . . . . . . . . . . . 3 . . . . 1 . . . . 1 . . . 2 . . . 2 . Open Door 5 | . . . . 1 . . . . . 1 . . . . . . . . . . . . . . . . . . . . . 2 . . . 1 . Level Access Points 1 | . . . . . . . . . . . . . . . . . . . . . . . . . . 1 . . . . . . . . . . . Branch Access Points 5 | . . . . . . . . . . . . . . . . . . . . 1 . 1 . . . . 1 . . 1 . . 1 . . . . Emergency Access Points 7 | . . . . . . . . . . . . . . . . . . . . . . . . . . 1 . 3 . 1 . . 1 . 1 . . Machine Index 4 | . . . . . . . . . . . . . . . . . . . . . . . . . . 1 1 . . 1 . . . . . 1 . Terminal Index 7 | . . . . . . . . 1 . . . . . . 1 . . . . 1 . 1 1 . . . . 1 . . . . . . 1 . . Fabricator Index 7 | . . . . . . . . 1 . . . . 1 . 1 . . . . 1 . 1 . . . . . 1 . . . . . . 1 . . Repair Station Index 3 | . . . . . . . . . . . . . . . . . . . . . . . 1 . . . . . . 1 . . . . 1 . . Scanalyzer Index 1 | . . . . . . . . . . . . . . . . . . . . . . 1 . . . . . . . . . . . . . . . Alert Level 10 | . . . . . . . . 1 . . . . . . . . . . . 1 . . 1 . . . 2 . . 2 . . . . 1 2 . Unreport Threat 43 | . . . . . . . 1 . . . . . 1 . 1 . . . . 4 . 6 2 . . 5 1 . . 3 2 . 2 3 6 6 . Locate Traps 13 | . . . . . . . . 2 . . . . 1 . . . . . . 1 . 1 3 . . 2 . 2 . . . 1 . . . . . Disarm Traps 3 | . . . . . . . . . . . . . . . 1 . . . . . . . . . . 2 . . . . . . . . . . . Reprogram Traps 6 | . . . . . . . . . . . . . 1 . . . . . . . . . 1 . . . . 2 . . . 1 . . . 1 . Maintenance Status 2 | . . . . . . . . . . . . . . . . . . . . . . . . . . 1 1 . . . . . . . . . . Security Status 2 | . . . . . . . . . . . . . . . . . . . . . . . 1 . . 1 . . . . . . . . . . . Patrol Status 9 | . . . . . . . . 1 . . . . . . . . . . . . . . 1 1 . . 1 2 . 1 1 . . . . 1 . Transport Status 1 | . . . . . . . . 1 . . . . . . . . . . . . . . . . . . . . . . . . . . . . . Recall Investigation 4 | . . . . . . . . . . . . . 2 . . . . . . . . . 1 . . . . 1 . . . . . . . . . Recall Extermination 11 | . . . . . . . . . . . . . 1 . . . . . . 1 . 2 . . . . 2 1 . . 1 2 . 1 . . . Recall Reinforcements 12 | . . . . . . . . . . . . . 1 . 1 . . . . . . 2 3 . . . 1 . . . . 1 . 3 . . . Recall Assault 4 | . . . . . . . . . . . . . . . . . . . . . . . . . . . . . . . . . . 1 3 . . Registered Prototypes 2 | . . . . . . . . . . . . . . . . . . . . . . . . . . . . . . 1 . 1 . . . . . Zone Layout 18 | . . . . . . . . 1 . . . . . . . . . . . 1 . 1 4 . . 5 . 4 . 1 . 1 . . . . . EX-Prototype ID Bank 1 | . . . . . 1 . . . . . . . . . . . . . . . . . . . . . . . . . . . . . . . . Protovariant Controls 1 | . . . . . . . . . . . . . . . . . . . . . . . . . . . . . . . . . . 1 . . . Disengage Seal 2 | . . . . . . . . . . . . . . . . . . . . . . . . . . . . . . . . . . . . 2 . Gate Test 138-A 1 | . . . . . . . . . . . . . . . . . . . . . . . . . . . . . . . . . . . . . 1 Gate Test 138-B 1 | . . . . . . . . . . . . . . . . . . . . . . . . . . . . . . . . . . . . . 1 Gate Test 138-C 2 | . . . . . . . . . . . . . . . . . . . . . . . . . . . . . . . . . . . . . 2 Fabricator Hacks 62 | . . . . . . . . 2 . . . . 4 . 3 . . . . 9 . 14 . . . . 5 6 . 6 . . 2 5 6 . . Load Schematic 28 | . . . . . . . . 1 . . . . 3 . 1 . . . . 3 . 8 . . . . 2 3 . 2 . . 1 2 2 . . Build 34 | . . . . . . . . 1 . . . . 1 . 2 . . . . 6 . 6 . . . . 3 3 . 4 . . 1 3 4 . . Repair Station Hacks 74 | . 5 . . . . . 4 . . . . . . . . . . . . 4 . . . . . . 10 . . 6 4 . . 19 22 . . Scan Component 39 | . 3 . . . . . 3 . . . . . . . . . . . . 2 . . . . . . 5 . . 3 2 . . 10 11 . . Repair 35 | . 2 . . . . . 1 . . . . . . . . . . . . 2 . . . . . . 5 . . 3 2 . . 9 11 . . Recycling Unit Hacks 1 | . . . . . . . . . . . . . . . . . . . . . . 1 . . . . . . . . . . . . . . . Retrieve Components 1 | . . . . . . . . . . . . . . . . . . . . . . 1 . . . . . . . . . . . . . . . Scanalyzer 47 | . . . . . . . 8 . . . . . . . . . . . . . . 1 . . . . . . . 23 5 4 1 4 1 . . Insert Component 30 | . . . . . . . 4 . . . . . . . . . . . . . . 1 . . . . . . . 13 4 4 1 2 1 . . Analyze 17 | . . . . . . . 4 . . . . . . . . . . . . . . . . . . . . . . 10 1 . . 2 . . . Garrison Access Hacks 11 | . . . . . . . 1 . . . . . . . . . . . . 1 . . . . . 1 . . . 3 1 . . 1 3 . . Seal Access 11 | . . . . . . . 1 . . . . . . . . . . . . 1 . . . . . 1 . . . 3 1 . . 1 3 . . Unauthorized Hacks 205 | . 5 . 1 . . . 3 6 . . . . 19 . 3 . . . . 12 . 14 20 9 . 21 8 11 . 10 8 12 11 7 13 12 . Terminals 166 | . 3 . . . . . 3 4 . . . . 16 . 3 . . . . 8 . 7 20 9 . 21 6 9 . 10 7 12 3 5 8 12 . Track 60 | . . . . . . . 1 1 . . . . 8 . . . . . . 4 . 3 6 3 . 7 3 5 . 4 3 5 1 2 . 4 . Assimilate 15 | . . . . . . . . . . . . . 1 . . . . . . 2 . 1 2 . . 3 1 . . 1 . 1 . . 2 1 . Botnet 55 | . 1 . . . . . 2 3 . . . . 6 . 3 . . . . 2 . 3 6 3 . 3 2 2 . 4 2 3 1 1 5 3 . Disrupt 19 | . . . . . . . . . . . . . . . . . . . . . . . 5 3 . 1 . 1 . 1 1 2 . 2 . 3 . Operators 9 | . . . . . . . . . . . . . 1 . . . . . . . . . 1 . . 1 . 1 . . 1 1 1 . 1 1 . Sabotage 7 | . 1 . . . . . . . . . . . . . . . . . . . . . . . . 6 . . . . . . . . . . . Search 1 | . 1 . . . . . . . . . . . . . . . . . . . . . . . . . . . . . . . . . . . . Fabricators 16 | . . . . . . . . . . . . . . . . . . . . 4 . 3 . . . . 2 2 . . . . 2 2 1 . . Report 2 | . . . . . . . . . . . . . . . . . . . . 1 . 1 . . . . . . . . . . . . . . . Prioritize 4 | . . . . . . . . . . . . . . . . . . . . 1 . . . . . . 1 1 . . . . 1 . . . . Siphon 10 | . . . . . . . . . . . . . . . . . . . . 2 . 2 . . . . 1 1 . . . . 1 2 1 . . Repair Stations . | . . . . . . . . . . . . . . . . . . . . . . . . . . . . . . . . . . . . . . Recycling Units 13 | . 2 . 1 . . . . 2 . . . . 2 . . . . . . . . 3 . . . . . . . . . . . . 3 . . Reject 2 | . . . . . . . . . . . . . . . . . . . . . . 1 . . . . . . . . . . . . 1 . . Recyclers 4 | . . . . . . . . 1 . . . . 1 . . . . . . . . 1 . . . . . . . . . . . . 1 . . Mask 4 | . . . . . . . . 1 . . . . 1 . . . . . . . . 1 . . . . . . . . . . . . 1 . . Tunnel 3 | . 2 . 1 . . . . . . . . . . . . . . . . . . . . . . . . . . . . . . . . . . Scanalyzers 2 | . . . . . . . . . . . . . . . . . . . . . . 1 . . . . . . . . 1 . . . . . . Researchers 1 | . . . . . . . . . . . . . . . . . . . . . . . . . . . . . . . 1 . . . . . . Extract 1 | . . . . . . . . . . . . . . . . . . . . . . 1 . . . . . . . . . . . . . . . Garrison Access 8 | . . . . . . . . . . . . . 1 . . . . . . . . . . . . . . . . . . . 6 . 1 . . Broadcast 1 | . . . . . . . . . . . . . . . . . . . . . . . . . . . . . . . . . 1 . . . . Redirect 1 | . . . . . . . . . . . . . . . . . . . . . . . . . . . . . . . . . 1 . . . . Reprogram 4 | . . . . . . . . . . . . . 1 . . . . . . . . . . . . . . . . . . . 2 . 1 . . Intercept 1 | . . . . . . . . . . . . . . . . . . . . . . . . . . . . . . . . . 1 . . . . Watchers 1 | . . . . . . . . . . . . . . . . . . . . . . . . . . . . . . . . . 1 . . . . Data Cores Recovered 1 | . . . . . . . . . . . . . . . . . . . . . . . . . . . . 1 . . . . . . . . . Used . | . . . . . . . . . . . . . . . . . . . . . . . . . . . . . . . . . . . . . . Hacking Detections 148 | . 4 . 2 1 . . 11 6 . . . . 16 . 4 . . . . 13 . 10 9 4 . 9 4 5 . 8 5 9 2 9 11 6 . Full Trace Events 17 | . . . . . . . 4 . . . . . 4 . . . . . . 1 . 1 1 1 . . . . . 1 . . . . 3 1 . Feedback Events 1 | . . . . . . . . . . . . . . . . . . . . 1 . . . . . . . . . . . . . . . . . Hackware Fried 1 | . . . . . . . . . . . . . . . . . . . . 1 . . . . . . . . . . . . . . . . . Feedback Blocked . | . . . . . . . . . . . . . . . . . . . . . . . . . . . . . . . . . . . . . . Robot Schematics Acquired 7 | . . . . . . . 1 1 . . . . . . . . . 4 . . . . . 1 . . . . . . . . . . . . . Robots Built 2 | . . . . . . . . 2 . . . . . . . . . . . . . . . . . . . . . . . . . . . . . Matter 252 | . . . . . . . . 252 . . . . . . . . . . . . . . . . . . . . . . . . . . . . . Time 67 | . . . . . . . . 67 . . . . . . . . . . . . . . . . . . . . . . . . . . . . . Total Robot Build Rating 8 | . . . . . . . . 8 . . . . . . . . . . . . . . . . . . . . . . . . . . . . . Part Schematics Acquired 50 | . . . . . . . 1 1 . . . . 2 . . . . 6 . 6 . 7 1 1 . 4 3 3 . 8 1 1 . 2 3 . . Parts Built 32 | . . . . . . . . . . . . . 1 . 2 . . . . 4 . 8 . . . . 4 3 . 2 . . 1 3 4 . . Matter 6987 | . . . . . . . . . . . . . 285 . 380 . . . . 996 . 1066 . . . . 685 689 . 636 . . 213 789 1248 . . Time 2502 | . . . . . . . . . . . . . 76 . 62 . . . . 380 . 499 . . . . 165 321 . 143 . . 76 484 296 . . Total Part Build Rating 191 | . . . . . . . . . . . . . 5 . 10 . . . . 20 . 39 . . . . 26 17 . 12 . . 5 21 36 . . Parts Repaired 35 | . 2 . . . . . 1 . . . . . . . . . . . . 2 . . . . . . 5 . . 3 2 . . 9 11 . . Time 1245 | . 62 . . . . . 136 . . . . . . . . . . . . 118 . . . . . . 129 . . 120 44 . . 312 324 . . Parts Recycled . | . . . . . . . . . . . . . . . . . . . . . . . . . . . . . . . . . . . . . . Recycled Matter . | . . . . . . . . . . . . . . . . . . . . . . . . . . . . . . . . . . . . . . Retrieved Matter . | . . . . . . . . . . . . . . . . . . . . . . . . . . . . . . . . . . . . . . Retrieved Components 3 | . . . . . . . . . . . . . . . . . . . . . . 3 . . . . . . . . . . . . . . . Parts Scanalyzed 14 | . . . . . . . 2 . . . . . . . . . . . . . . . . . . . . . . 8 1 . . 2 1 . . Part Schematics Acquired 12 | . . . . . . . 1 . . . . . . . . . . . . . . . . . . . . . . 8 1 . . 2 . . . Parts Damaged . | . . . . . . . . . . . . . . . . . . . . . . . . . . . . . . . . . . . . . . Bothacking | -11 -10 -10 -9 -9 -9 -8 -8 -7 -7 -7 -7 -6 -6 -6 -6 -6 -6 -6 -5 -5 -5 -5 -5 -5 -5 -5 -4 -4 -4 -3 -3 -3 -2 -2 -1 -1 -1 ------------ Run | Scr Mat Min Mat Min Exi Min Mat Fac Low Low Zio Pro Fac Was Fac Low Low Dat Pro Fac Was Fac Ext Cet Arc Hub Fac Arm Lab Res Qua Sec Res Tes Acc Com Ac0 Used RIF Installer . | . . . . . . . . . . . . . . . . . . . . . . . . . . . . . . . . . . . . . . Robots Hacked . | . . . . . . . . . . . . . . . . . . . . . . . . . . . . . . . . . . . . . . Non-combat . | . . . . . . . . . . . . . . . . . . . . . . . . . . . . . . . . . . . . . . Combat . | . . . . . . . . . . . . . . . . . . . . . . . . . . . . . . . . . . . . . . Robot Hacks Applied . | . . . . . . . . . . . . . . . . . . . . . . . . . . . . . . . . . . . . . . Relay Couplers Released 5 | . . . . . . . . . . . . . . . . . . . . . . . . . . 1 . . . . . . 4 . . . . Machine Destruction 5 | . . . . . . . . . . . . . . . . . . . . . . . . . . 1 . . . . . . 4 . . . . Robots Rewired 21 | . . . . . . . . 1 . . . . . . . . . . . 1 . . 15 . . . 1 . . . . . . 3 . . . Allies Hacked 4 | . . . . . . . . . 3 . . . . . . . . . . . . . . . . . . . . . . . . 1 . . . Hacks Repelled 1 | . . . . . . . . . . . . . . . . . . . . . . . . . . . . . . . . . . . 1 . . Allies | -11 -10 -10 -9 -9 -9 -8 -8 -7 -7 -7 -7 -6 -6 -6 -6 -6 -6 -6 -5 -5 -5 -5 -5 -5 -5 -5 -4 -4 -4 -3 -3 -3 -2 -2 -1 -1 -1 -------- Run | Scr Mat Min Mat Min Exi Min Mat Fac Low Low Zio Pro Fac Was Fac Low Low Dat Pro Fac Was Fac Ext Cet Arc Hub Fac Arm Lab Res Qua Sec Res Tes Acc Com Ac0 Total Allies 79 | . . . . . . . . 3 3 . 1 . 1 20 . . . . 1 2 . 1 23 5 . 2 2 . . 1 . 1 6 3 3 1 . Largest Group 23 | . . . . . . . . 3 5 1 1 . 1 20 19 11 11 11 12 7 . 1 20 23 19 18 2 . . 1 . 1 5 6 2 1 . Highest-Rated Group 1103 | . . . . . . . . 92 238 16 99 . 26 807 757 481 481 481 575 356 . 26 686 1103 854 736 73 . . 26 . 26 254 370 102 44 . Highest-Rated Ally 156 | . . . . . . . . 38 64 16 99 . 26 50 46 46 46 46 94 94 . 26 156 156 94 94 47 . . 26 . 26 58 79 58 44 . Total Orders 100 | . . . . . 4 . 3 . 23 . . 1 4 . . . . . . . . . 22 . 19 2 4 . . . . 1 . . 16 1 . STAY 60 | . . . . . 1 . . . 16 . . . . . . . . . . . . . 13 . 17 1 2 . . . . 1 . . 9 . . FOLLOW 27 | . . . . . . . . . 6 . . . . . . . . . . . . . 9 . 2 1 2 . . . . . . . 7 . . EXPLORE 8 | . . . . . . . 2 . 1 . . 1 3 . . . . . . . . . . . . . . . . . . . . . . 1 . RETURN 5 | . . . . . 3 . 1 . . . . . 1 . . . . . . . . . . . . . . . . . . . . . . . . Ally Attacks 842 | . . . . . 65 . . . 188 2 . . . . 95 26 . . 94 64 . . 101 17 10 101 4 . . . . . 17 55 3 . . Total Damage 17442 | . . . . . 448 . . . 2180 33 . . . . 1815 510 . . 2651 1543 . . 2152 304 295 2729 155 . . . . . 471 2040 116 . . Kills 125 | . . . . . 3 . . . 14 . . . . . 18 3 . . 21 15 . . 13 2 3 19 3 . . . . . 1 7 3 . . Allies Corrupted 3 | . . . . . . . . . . . . . . . . . . . . . . . . . . . . . . . . . . 1 . 2 . Allies Melted 2 | . . . . . . . . . 1 . . . . . . . . . . 1 . . . . . . . . . . . . . . . . . Turrets Deployed 1 | . . . . . . . . . . . . . . . . . . . . . . . . . . . . . . . . . . 1 . . . Intel | -11 -10 -10 -9 -9 -9 -8 -8 -7 -7 -7 -7 -6 -6 -6 -6 -6 -6 -6 -5 -5 -5 -5 -5 -5 -5 -5 -4 -4 -4 -3 -3 -3 -2 -2 -1 -1 -1 ------- Run | Scr Mat Min Mat Min Exi Min Mat Fac Low Low Zio Pro Fac Was Fac Low Low Dat Pro Fac Was Fac Ext Cet Arc Hub Fac Arm Lab Res Qua Sec Res Tes Acc Com Ac0 Robot Analysis Total 23 | . 2 . . . . . . 1 . . . . 1 . . . . . . 1 . . 3 3 . . . 1 . 3 . 5 . 1 . 2 . Derelict Logs Recovered 10 | . . 2 . . . . . . 1 1 2 1 . . . 1 1 . 1 . . . . . . . . . . . . . . . . . . Drone Launches 33 | . . . . . 24 . 2 . 1 . . 1 3 . . . . . . . . . . . . . . . . . . . . . . 2 . Drone Recoveries 29 | . . . . . 22 . 2 . 1 . . 1 3 . . . . . . . . . . . . . . . . . . . . . . . . Exploration | -11 -10 -10 -9 -9 -9 -8 -8 -7 -7 -7 -7 -6 -6 -6 -6 -6 -6 -6 -5 -5 -5 -5 -5 -5 -5 -5 -4 -4 -4 -3 -3 -3 -2 -2 -1 -1 -1 ------------- Run | Scr Mat Min Mat Min Exi Min Mat Fac Low Low Zio Pro Fac Was Fac Low Low Dat Pro Fac Was Fac Ext Cet Arc Hub Fac Arm Lab Res Qua Sec Res Tes Acc Com Ac0 Turns Passed 69894 | 59 1114 585 624 365 7612 224 3384 332 3115 165 1512 80 650 333 464 266 327 83 331 1084 41 1323 1209 253 767 295 606 971 223 995 510 1519 444 1282 2368 33623 756 Spaces Moved 99014 | 32 567 459 291 205 4477 168 1170 726 2872 471 2209 207 1358 542 868 602 366 169 621 1860 111 2014 1596 278 839 596 996 839 337 1559 898 2197 780 1923 4042 58687 1082 Core 3907 | . . . . . . . . . 46 . 94 . . . . . . . . . . . 61 . 523 . 8 . . . . . . 50 . 3125 . Treads 5456 | . . . . . 1987 . 866 . . . . . . . . . . . . . . . . . . . . . . . . . . . . 2602 1 Legs 132 | 32 100 . . . . . . . . . . . . . . . . . . . . . . . . . . . . . . . . . . . . Wheels 5340 | . 467 459 291 205 2490 168 246 . . . . . . . . . . . . . . . . . . . . . . . . . . . . 1014 . Hover . | . . . . . . . . . . . . . . . . . . . . . . . . . . . . . . . . . . . . . . Flight 84179 | . . . . . . . 58 726 2826 471 2115 207 1358 542 868 602 366 169 621 1860 111 2014 1535 278 316 596 988 839 337 1559 898 2197 780 1873 4042 51946 1081 Fastest Speed 26 | 120 110 110 110 140 110 120 32 32 32 32 32 32 32 32 32 32 32 32 32 32 37 37 37 37 37 37 37 37 37 26 32 26 32 32 32 26 32 Average Speed 47 | 120 117 110 131 140 157 120 234 32 32 32 38 32 32 32 32 32 32 32 32 35 37 37 39 37 51 37 37 37 37 32 32 31 32 33 32 40 32 Slowest Speed 280 | 120 210 110 220 140 220 120 280 32 102 32 250 102 32 32 32 32 32 32 32 37 37 102 100 37 150 37 100 37 37 37 32 32 32 100 32 175 135 Overloaded Moves 102 | . . . . . . . . . . . . . . . . . . . . . . . . . . . . . . 42 . 57 . . . 3 . Propulsion Burnouts . | . . . . . . . . . . . . . . . . . . . . . . . . . . . . . . . . . . . . . . Robots Hopped 283 | . . . . . . . . 5 3 1 . 1 12 . 12 . . . . 14 . 4 22 . . 9 7 . . 15 9 10 5 63 59 16 16 Cave-ins Triggered . | . . . . . . . . . . . . . . . . . . . . . . . . . . . . . . . . . . . . . . Teleports 1 | . . . . . . . . . . . . . . . . . . . . . . . . . . . . . . . . . . . . 1 . Exploration Rate (%) 56 | 5 57 97 22 40 94 37 84 15 61 69 89 53 36 95 15 57 41 70 63 37 84 19 87 79 76 41 15 39 96 30 73 70 15 79 43 96 49 Regions Visited 37 Branch Regions 23 Pre-discovered Areas 6 | . 2 . 1 . 1 . . . . 1 . . . . . . . 1 . . . . . . . . . . . . . . . . . . . Known Exits Taken 27 | . . . 1 . . 1 1 1 1 1 1 1 . . 1 1 1 1 1 . . 1 1 1 1 1 1 1 1 1 1 1 1 1 1 . . Unknown Exits Taken 6 | 1 1 1 . 1 1 . . . . . . . . . . . . . . . . . . . . . . . . . . . . . . 1 . Scrap Searched 12 | . . 1 . . . . . . 2 4 1 2 . . . 1 . . 1 . . . . . . . . . . . . . . . . . . Spaces Dug 195 | . . . . . . . 3 . 4 . 13 . 5 . 10 . 4 . 1 7 . 27 . 8 1 5 21 6 . 11 9 33 1 3 16 5 2 Terrain Destroyed 727 | . 77 24 23 24 42 21 58 . 6 . 14 13 47 . 10 1 4 . 1 11 . 29 5 30 3 5 22 10 . 12 13 35 2 14 26 85 60 Melee 178 | . . . . . . . . . 4 . 7 . 5 . 10 . 4 . 1 7 . 27 . 8 1 5 21 6 . 11 9 31 . 3 13 3 2 Projectile 127 | . . . . . 22 . 9 . 2 . 7 . . . . 1 . . . 1 . 2 5 . 2 . 1 4 . 1 4 4 2 11 13 14 22 AOE 422 | . 77 24 23 24 20 21 49 . . . . 13 42 . . . . . . 3 . . . 22 . . . . . . . . . . . 68 36 Terrain Rammed . | . . . . . . . . . . . . . . . . . . . . . . . . . . . . . . . . . . . . . . Walls Destroyed . | . . . . . . . . . . . . . . . . . . . . . . . . . . . . . . . . . . . . . . Machines Disabled . | . . . . . . . . . . . . . . . . . . . . . . . . . . . . . . . . . . . . . . Actions | -11 -10 -10 -9 -9 -9 -8 -8 -7 -7 -7 -7 -6 -6 -6 -6 -6 -6 -6 -5 -5 -5 -5 -5 -5 -5 -5 -4 -4 -4 -3 -3 -3 -2 -2 -1 -1 -1 --------- Run | Scr Mat Min Mat Min Exi Min Mat Fac Low Low Zio Pro Fac Was Fac Low Low Dat Pro Fac Was Fac Ext Cet Arc Hub Fac Arm Lab Res Qua Sec Res Tes Acc Com Ac0 Total 120815 | 42 898 534 432 277 4963 181 1615 806 5008 485 2808 217 1518 699 1002 672 565 197 749 2227 110 2408 2043 358 1178 625 1144 1431 400 1905 1037 2792 906 2308 4819 70152 1304 Wait 11869 | 4 206 53 43 65 211 5 160 38 2019 7 492 4 88 127 96 59 190 29 123 296 . 246 307 18 192 9 80 525 14 237 65 353 85 154 466 4770 33 Move 98439 | 31 566 458 290 204 4476 167 1169 717 2865 468 2208 204 1334 541 845 601 365 168 620 1832 110 2005 1558 277 838 579 981 838 336 1529 879 2176 769 1804 3929 58650 1052 Hop 253 | . . . . . . . . 3 3 1 . 1 12 . 10 . . . . 14 . 4 15 . . 7 7 . . 14 9 10 5 55 53 16 14 Pick Up 3490 | . 23 6 23 2 72 . 44 6 28 1 26 1 15 4 5 . . . . 9 . 9 2 3 56 . 12 4 7 14 9 17 3 27 21 3031 10 Fast Attach 316 | 1 5 . 2 . 23 . 10 . 8 2 9 . 1 8 3 2 1 . 2 9 . 3 . 3 11 . . . 8 2 1 13 . 29 30 114 16 Attach 287 | . 2 2 8 . 9 1 27 5 9 1 3 3 15 3 5 2 1 . . 10 . 8 3 3 2 . 5 1 1 7 5 29 4 29 25 53 6 Detach 156 | . . 1 2 . 4 . 9 2 10 . 2 2 7 1 4 2 1 . . 5 . 5 2 3 1 . . . . 2 1 18 1 14 15 41 1 Swap 386 | . 16 3 1 4 10 2 19 5 4 . . . 4 . 4 1 . . . 15 . 35 15 12 . 5 16 18 2 14 21 22 6 19 38 49 26 Drop 3600 | . 12 7 5 . 88 . 55 3 33 5 17 . 8 12 8 2 1 . 2 13 . 9 . 7 66 . 4 4 14 6 10 23 1 51 39 3082 13 Fire 1165 | 6 68 4 58 2 70 6 122 . 10 . 29 2 4 . 5 3 2 . . 8 . 36 48 6 4 17 12 24 . 68 20 44 32 108 150 66 131 Melee 479 | . . . . . . . . 9 19 . 22 . 30 3 16 . 4 . 2 15 . 48 6 26 8 8 25 17 18 12 17 69 . 11 13 79 2 Ram 1 | . . . . . . . . . . . . . . . 1 . . . . . . . . . . . . . . . . . . . . . . Kick . | . . . . . . . . . . . . . . . . . . . . . . . . . . . . . . . . . . . . . . Crush . | . . . . . . . . . . . . . . . . . . . . . . . . . . . . . . . . . . . . . . Escape Stasis 258 | . . . . . . . . . . . . . . . . . . . . . . . . . . . . . . . . 18 . . 40 200 . Rewire 116 | . . . . . . . . 18 . . . . . . . . . . . 1 . . 87 . . . 2 . . . . . . 7 . 1 . Trap . | . . . . . . . . . . . . . . . . . . . . . . . . . . . . . . . . . . . . . . Miscellaneous . | . . . . . . . . . . . . . . . . . . . . . . . . . . . . . . . . . . . . . . Route ------- -11/Scrapyard -10/Materials (discovered 3 exits: *Mat x2 / [*Min]) -10/Mines (discovered 2 exits: *Mat x2) -9/Materials (discovered 3 exits: Mat / *Min x2) -9/Mines -9/Exiles (discovered 2 exits: [*Min x2]) -8/Mines -8/Materials (discovered 2 exits: *Fac x2) -7/Factory (discovered 2 exits: *Fac / *Low) -7/Lower Caves -7/Lower Caves (discovered 2 exits: *Fac / *Zio) -7/Zion -6/Proximity Caves -6/Factory (discovered 4 exits: *Fac x2 / *Low x2) -6/Waste -6/Factory -6/Lower Caves -6/Lower Caves -6/Data Miner -5/Proximity Caves -5/Factory (discovered 5 exits: *Fac / *Upp x2 / Ext x2) -5/Waste -5/Factory (discovered 4 exits: Upp x2 / *Ext x2) -5/Extension (discovered 3 exits: *Fac x2 / *Cet) -5/Cetus (discovered 2 exits: *Fac / *Arc) -5/Archives (discovered 3 exits: *Fac / *Hub x2) -5/Hub_04(d) (discovered 4 exits: *Fac x4) -4/Factory (discovered 4 exits: *Res / Upp x2 / *Arm) -4/Armory (discovered 3 exits: Res x2 / *Lab) -4/Lab -3/Research (discovered 2 exits: *Qua x2) -3/Quarantine (discovered 2 exits: *Res / *Sec) -3/Section 7 -2/Research (discovered 2 exits: *Tes x2) -2/Testing -1/Access -1/Command (discovered 3 exits: [*Sur x2] / *Ac0) -1/Access_0 Subspace History --------- Turn | Location | Event 14 | -11/Scrapyard | Discovered new exit (range 3) 60 | -11/Scrapyard | Entered Materials 209 | -10/Materials | Discovered new exit (range 16) 298 | -10/Materials | Repaired Med. Laser 335 | -10/Materials | Repaired Broken Aluminum Leg 442 | -10/Materials | Discovered new exit (range 16) 513 | -10/Materials | Build established: Hauler-Mutant 949 | -10/Materials | Discovered new exit (range 16) 1174 | -10/Materials | Entered Mines 1191 | -10/Mines | Learned Materials stockpile data 1401 | -10/Mines | Found a damaged Exp. Sensor Array with a note attached 1406 | -10/Mines | Found Prototype Device 1412 | -10/Mines | Discovered new exit (range 10) 1533 | -10/Mines | Discovered new exit (range 5) 1607 | -10/Mines | Learned location of 2 exits from Materials 1695 | -10/Mines | Found a hidden stash of uninstalled traps 1759 | -10/Mines | Entered Materials 1759 | -9/Materials | Evolved 2 slots: Utility x2 1760 | -9/Materials | Identified exit to Mines 1760 | -9/Materials | Identified exit to Materials 1832 | -9/Materials | Discovered exit to Mines (range 6) 2383 | -9/Materials | Entered Mines 2446 | -9/Mines | Met a Derelict bent on vengeance 2638 | -9/Mines | A weapon hastily lodged in a ceiling crevice suddenly fell to the ground 2677 | -9/Mines | Found the Drone Emporium 2683 | -9/Mines | Found Prototype Device 2742 | -9/Mines | Deemed a non-threat by the Exiles lab entrance 2742 | -9/Mines | Discovered new exit (range 5) 2748 | -9/Mines | Entered Exiles 2767 | -9/Exiles | Discovered new exit (range 15) 2786 | -9/Exiles | Met 8R-AWN 2807 | -9/Exiles | Met EX-HEX 2880 | -9/Exiles | Met EX-DEC 2908 | -9/Exiles | Visited The Gauntlet 3101 | -9/Exiles | Learned location of Zion (-7) 3157 | -9/Exiles | Discovered new exit (range 11) 3259 | -9/Exiles | Identified Thief Drone Bay 3333 | -9/Exiles | Met EX-BIN 3928 | -9/Exiles | Aligned with FarCom system 3929 | -9/Exiles | Given EX-Vault access code 3967 | -9/Exiles | Opened EX-Vault 3978 | -9/Exiles | Found Lightpack 2.0 3982 | -9/Exiles | Found Supersonic Drone Bay 3992 | -9/Exiles | Found Army-in-a-Box 4021 | -9/Exiles | Warned to stay clear of 0b10 Research branches 7049 | -9/Exiles | Build established: Mutant 7186 | -9/Exiles | Attacked by the Exiles 7243 | -9/Exiles | Core integrity fell below 50% 7302 | -9/Exiles | Found Prototype Ballistic Gun 7302 | -9/Exiles | Identified 8R-AWN's Boregun 7306 | -9/Exiles | Found 8R-AWN's Boregun 7570 | -9/Exiles | Destroyed 8R-AWN 7577 | -9/Exiles | Found Prototype Protection 7577 | -9/Exiles | Identified 8R-AWN's Armor/EX 7905 | -9/Exiles | Found Prototype Device 7905 | -9/Exiles | Identified AS-neutralizer No. 17b 8079 | -9/Exiles | Destroyed EX-HEX 8382 | -9/Exiles | Allies destroyed EX-DEC 8407 | -9/Exiles | Found Prototype Device 8407 | -9/Exiles | Identified System Purifier 8421 | -9/Exiles | Allies destroyed EX-BIN 9286 | -9/Exiles | Build established: Hauler-Mutant 9360 | -9/Exiles | Found Deploy-a-Sentry 9459 | -9/Exiles | Identified Exp. Sensor Array 10360 | -9/Exiles | Stole four prototypes: Lightpack 2.0, Supersonic Drone Bay, Army-in-a-Box, Deploy-a-Sentry 10360 | -9/Exiles | Entered Mines 10568 | -8/Mines | Discovered exit to Materials (range 14) 10584 | -8/Mines | Entered Materials 10584 | -8/Materials | Evolved 2 slots: Utility x2 12525 | -8/Materials | Discovered new exit (range 3) 13294 | -8/Materials | Discovered new exit (range 14) 13384 | -8/Materials | First assault squad dispatched 13506 | -8/Materials | Core integrity fell below 50% 13548 | -8/Materials | Destroyed 7 combat bots 13555 | -8/Materials | Lost 3 parts (1p1n1w) 13628 | -8/Materials | Repaired Broken System Purifier? 13947 | -8/Materials | Identified exit to Factory 13968 | -8/Materials | Entered Factory 13968 | -7/Factory | Evolved 2 slots: Utility x2 14039 | -7/Factory | Discovered new exit (range 8) 14041 | -7/Factory | Identified exit to Lower Caves 14090 | -7/Factory | Discovered new exit (range 12) 14233 | -7/Factory | Central database locked down 14248 | -7/Factory | Fabricated P-60 Hacker? 14300 | -7/Factory | Entered Lower Caves 14300 | -7/Lower Caves | Accompanied by 3 allies 14471 | -7/Lower Caves | Build established: Hacker-Sprinter 14510 | -7/Lower Caves | Spotted F9-L57(f) 14511 | -7/Lower Caves | Encountered a Master Thief 14575 | -7/Lower Caves | Allies destroyed F9-L57(f) 14901 | -7/Lower Caves | Spotted XY-Z5V(f) 14902 | -7/Lower Caves | Encountered a Master Thief 14936 | -7/Lower Caves | Allies destroyed XY-Z5V(f) 15100 | -7/Lower Caves | Spotted DT-T1X(f) 15102 | -7/Lower Caves | Encountered a Master Thief 15103 | -7/Lower Caves | Spotted ZM-G75(f) 15104 | -7/Lower Caves | Encountered a Master Thief 15109 | -7/Lower Caves | Hacker 4a assimilated hostile ZM-G75(f) 15142 | -7/Lower Caves | Allies destroyed DT-T1X(f) 15306 | -7/Lower Caves | Spotted CL-RH6(f) 15307 | -7/Lower Caves | Encountered a Master Thief 15309 | -7/Lower Caves | Spotted R6-RRN(f) 15311 | -7/Lower Caves | Encountered a Master Thief 15341 | -7/Lower Caves | Allies destroyed CL-RH6(f) 15354 | -7/Lower Caves | Encountered a Warlord checkpoint 15369 | -7/Lower Caves | Allies destroyed R6-RRN(f) 15500 | -7/Lower Caves | Spotted 8Y-6ED(f) 15502 | -7/Lower Caves | Encountered a Master Thief 15514 | -7/Lower Caves | Spotted SJ-U0E(f) 15515 | -7/Lower Caves | Encountered a Master Thief 15547 | -7/Lower Caves | Allies destroyed 8Y-6ED(f) 15573 | -7/Lower Caves | Allies destroyed SJ-U0E(f) 15700 | -7/Lower Caves | Spotted EP-JFZ(f) 15701 | -7/Lower Caves | Spotted 4U-NCX(f) 15703 | -7/Lower Caves | Encountered a Master Thief 15704 | -7/Lower Caves | Encountered a Master Thief 15713 | -7/Lower Caves | Hacker 4a assimilated hostile EP-JFZ(f) 15902 | -7/Lower Caves | Spotted W2-FSO(f) 15904 | -7/Lower Caves | Encountered a Master Thief 15910 | -7/Lower Caves | Spotted AV-J8M(f) 15911 | -7/Lower Caves | Encountered a Master Thief 16300 | -7/Lower Caves | Spotted G8-JS2(f) 16302 | -7/Lower Caves | Encountered a Master Thief 16312 | -7/Lower Caves | Spotted 9Q-R0Y(f) 16313 | -7/Lower Caves | Encountered a Master Thief 16333 | -7/Lower Caves | Allies destroyed G8-JS2(f) 16344 | -7/Lower Caves | Allies destroyed 9Q-R0Y(f) 16900 | -7/Lower Caves | Spotted 44-CS6(f) 16901 | -7/Lower Caves | Spotted D7-91Q(f) 16902 | -7/Lower Caves | Encountered a Master Thief 16905 | -7/Lower Caves | Encountered a Master Thief 16951 | -7/Lower Caves | Allies destroyed 44-CS6(f) 17100 | -7/Lower Caves | Spotted 99-5T2(f) 17103 | -7/Lower Caves | Encountered a Master Thief 17105 | -7/Lower Caves | Spotted DW-6H7(f) 17106 | -7/Lower Caves | Encountered a Master Thief 17123 | -7/Lower Caves | Exp. Sensor Array stolen by Master Thief 17137 | -7/Lower Caves | Hacker 4b assimilated hostile 99-5T2(f) 17268 | -7/Lower Caves | Discovered new exit (range 81) 17291 | -7/Lower Caves | Learned Factory terminal intel 17305 | -7/Lower Caves | Identified exit to Lower Caves 17415 | -7/Lower Caves | Entered another Lower Caves area 17415 | -7/Lower Caves | Accompanied by 1 ally 17437 | -7/Lower Caves | Discovered new exit (range 18) 17528 | -7/Lower Caves | Found Prototype Device 17535 | -7/Lower Caves | Encountered a Warlord checkpoint 17535 | -7/Lower Caves | Discovered new exit (range 7) 17580 | -7/Lower Caves | Identified exit to Zion 17580 | -7/Lower Caves | Entered Zion 17597 | -7/Zion | Discovered new exit (range 15) 17602 | -7/Zion | Identified exit to Proximity Caves 17629 | -7/Zion | Received a hallucinogenic algorithm 17653 | -7/Zion | Learned location of 1 exit from Factory 17690 | -7/Zion | Learned Factory stockpile data 17693 | -7/Zion | Learned Factory emergency access door positions 17715 | -7/Zion | Found Prototype Device 17715 | -7/Zion | Identified Mobile Refinery Mk. CCLXVII 18113 | -7/Zion | Given A8's code to call for help 18688 | -7/Zion | Identified Heart of Steel 18975 | -7/Zion | Build established: Hauler-Mutant 18978 | -7/Zion | Heart of Steel transformed into Warbot 19092 | -7/Zion | Entered Proximity Caves 19103 | -6/Proximity Caves | Learned 8 Factory zone layouts 19131 | -6/Proximity Caves | Attracted the attention of an 0b10 checkpoint 19168 | -6/Proximity Caves | Discovered new exit (range 13) 19172 | -6/Proximity Caves | Identified exit to Factory 19172 | -6/Proximity Caves | Entered Factory 19172 | -6/Factory | Evolved 2 slots: Power x1, Utility x1 19173 | -6/Factory | Identified exit to Lower Caves 19174 | -6/Factory | Identified exit to Factory 19177 | -6/Factory | Loaded intel: 20 terminal locations 19179 | -6/Factory | Discovered exit to Lower Caves (range 45) 19276 | -6/Factory | Build established: Hauler-Sprinter 19329 | -6/Factory | Discovered exit to Factory (range 13) 19481 | -6/Factory | Fabricated Exp. Sensor Array? 19822 | -6/Factory | Sucked down chute 19822 | -6/Factory | Entered Waste 19823 | -6/Waste | Joined by Warlord forces that had cleared the area 19866 | -6/Waste | Discovered new exit (range 22) 19871 | -6/Waste | Build established: Hauler-Ninja 20094 | -6/Waste | Identified exit to Factory 20155 | -6/Waste | Entered Factory 20155 | -6/Factory | Accompanied by 19 allies 20183 | -6/Factory | Build established: Hauler-Scout 20357 | -6/Factory | Discovered exit to Lower Caves (range 12) 20477 | -6/Factory | Fabricated Imp. Hacking Suite? 20530 | -6/Factory | Fabricated Imp. Hacking Suite (x1) 20552 | -6/Factory | Local fabrication network quarantined 20619 | -6/Factory | Entered Lower Caves 20619 | -6/Lower Caves | Accompanied by 11 allies 20679 | -6/Lower Caves | Encountered a Warlord checkpoint 20679 | -6/Lower Caves | Identified exit to Lower Caves 20717 | -6/Lower Caves | Build established: Hacker-Sprinter 20885 | -6/Lower Caves | Entered another Lower Caves area 20885 | -6/Lower Caves | Accompanied by 11 allies 20905 | -6/Lower Caves | Encountered a Warlord checkpoint 20908 | -6/Lower Caves | Learned Factory garrison access intel 21142 | -6/Lower Caves | Discovered new exit (range 7) 21143 | -6/Lower Caves | Identified exit to Data Miner 21212 | -6/Lower Caves | Entered Data Miner 21212 | -6/Data Miner | Accompanied by 11 allies 21212 | -6/Data Miner | Discovered new exit (range 6) 21219 | -6/Data Miner | Met Data Miner 21228 | -6/Data Miner | Learned location of Section 7 (-3) 21228 | -6/Data Miner | Acquired the access code to Warlord's prototype stash 21231 | -6/Data Miner | Received God Mode back door access code from Data Miner 21251 | -6/Data Miner | Identified exit to Proximity Caves 21295 | -6/Data Miner | Entered Proximity Caves 21295 | -5/Proximity Caves | Accompanied by 11 allies 21319 | -5/Proximity Caves | Learned location of 1 exit from Factory 21324 | -5/Proximity Caves | Spotted 4D-STK(f) 21325 | -5/Proximity Caves | Encountered a Master Thief 21328 | -5/Proximity Caves | Escorted by Enhanced Grunt 21332 | -5/Proximity Caves | Allies destroyed 4D-STK(f) 21398 | -5/Proximity Caves | Attracted the attention of an 0b10 checkpoint 21588 | -5/Proximity Caves | Discovered exit to Factory (range 8) 21626 | -5/Proximity Caves | Entered Factory 21626 | -5/Factory | Accompanied by 7 allies 21626 | -5/Factory | Evolved 2 slots: Utility x2 21627 | -5/Factory | Identified exit to Factory 21628 | -5/Factory | Loaded intel: 4 garrison access locations 21655 | -5/Factory | Identified exit to Upper Caves 21655 | -5/Factory | Identified exit to Extension 21875 | -5/Factory | Fabricated Biomechanical Wings (x1) 21951 | -5/Factory | Fabricated Biomechanical Wings? 21965 | -5/Factory | Fabricated Exp. Targeting Computer (x1) 22185 | -5/Factory | Build established: Hacker-Mutant 22281 | -5/Factory | Fabricated Exp. Targeting Computer? 22378 | -5/Factory | Hacking Suite fried by hacking feedback 22414 | -5/Factory | Found Prototype Launcher 22463 | -5/Factory | Repaired Mic. Fission Core? 22482 | -5/Factory | Incoming investigation squad redirected 22518 | -5/Factory | Local fabrication network quarantined 22615 | -5/Factory | Repaired Force Lance 22710 | -5/Factory | Sucked down chute 22710 | -5/Factory | Entered Waste 22713 | -5/Waste | Spotted C-40 Crusher 22718 | -5/Waste | Spotted C-40 Crusher 22725 | -5/Waste | EMP discharged 22726 | -5/Waste | Build established: Wizard-Mutant 22738 | -5/Waste | Spotted C-40 Crusher 22739 | -5/Waste | Spotted C-40 Crusher 22739 | -5/Waste | Spotted C-40 Crusher 22743 | -5/Waste | Spotted C-40 Crusher 22743 | -5/Waste | Discovered new exit (range 13) 22748 | -5/Waste | Crushed by Compactor (1 part destroyed) 22750 | -5/Waste | Identified exit to Factory 22751 | -5/Waste | Entered Factory 22849 | -5/Factory | Fabricated Exp. Utility Shielding (x1) 22916 | -5/Factory | Fabricated Mic. Fission Core (x2) 22926 | -5/Factory | Fabricated Exp. Weapon Shielding? 22955 | -5/Factory | Central database locked down 22992 | -5/Factory | Incoming investigation squad redirected 22996 | -5/Factory | Fabricated Adv. Signal Interpreter? 23068 | -5/Factory | Fabricated Biomechanical Wings (x1) 23312 | -5/Factory | Fabricated Adv. System Shield (x1) 23538 | -5/Factory | Incoming investigation squad redirected 23664 | -5/Factory | Local fabrication network quarantined 23889 | -5/Factory | Spotted B-75 Beast 23939 | -5/Factory | Build established: Hacker-Mutant 24074 | -5/Factory | Entered Extension 24074 | -5/Extension | Accompanied by 1 ally 24133 | -5/Extension | Rescued a captive Derelict 24379 | -5/Extension | Rescued a captive Derelict 24380 | -5/Extension | Rescued a captive Derelict 24388 | -5/Extension | Build established: Machinist-Mutant 24452 | -5/Extension | Rescued A7 24452 | -5/Extension | Central database locked down 24732 | -5/Extension | Spotted B-75 Beast 24749 | -5/Extension | Allies destroyed B-75 Beast 24761 | -5/Extension | Spotted B-75 Beast 24770 | -5/Extension | Allies destroyed B-75 Beast 24774 | -5/Extension | Discovered exit to Factory (range 4) 24792 | -5/Extension | Rescued a captive Derelict 24798 | -5/Extension | Rescued a captive Derelict 24810 | -5/Extension | Rescued a captive Derelict 24937 | -5/Extension | Incoming investigation squad redirected 25237 | -5/Extension | Discovered exit to Factory (range 10) 25238 | -5/Extension | Discovered new exit (range 6) 25243 | -5/Extension | Identified exit to Cetus 25283 | -5/Extension | Entered Cetus 25283 | -5/Cetus | Accompanied by 18 allies (A7) 25288 | -5/Cetus | Acquired a Cetus Manufacturing Module code from A7 25297 | -5/Cetus | Spotted Cetus Guard 25297 | -5/Cetus | Spotted Cetus Guard 25301 | -5/Cetus | Destroyed Cetus Guard 25301 | -5/Cetus | Allies destroyed Cetus Guard 25301 | -5/Cetus | Spotted Cetus Guard 25302 | -5/Cetus | Spotted Cetus Guard 25304 | -5/Cetus | Destroyed Cetus Guard 25304 | -5/Cetus | Destroyed Cetus Guard 25332 | -5/Cetus | Started Cetus Manufacturing Module 25348 | -5/Cetus | Escorted A7 to Cetus Mainframe 25357 | -5/Cetus | Manufactured an Enhanced Grunt 25365 | -5/Cetus | Found a strange terminal 25373 | -5/Cetus | Discovered new exit (range 16) 25380 | -5/Cetus | Spotted Cetus Guard 25380 | -5/Cetus | Spotted Cetus Guard 25382 | -5/Cetus | Manufactured an Enhanced Grunt 25388 | -5/Cetus | Destroyed Cetus Guard 25388 | -5/Cetus | Destroyed Cetus Guard 25388 | -5/Cetus | Spotted Cetus Guard 25388 | -5/Cetus | Spotted Cetus Guard 25390 | -5/Cetus | Destroyed Cetus Guard 25396 | -5/Cetus | Destroyed Cetus Guard 25406 | -5/Cetus | Discovered exit to Factory (range 15) 25407 | -5/Cetus | Manufactured an Enhanced Grunt 25409 | -5/Cetus | Met Revision 17 25432 | -5/Cetus | Manufactured an Enhanced Grunt 25437 | -5/Cetus | Build established: Commander-Mutant 25445 | -5/Cetus | Identified exit to Archives 25457 | -5/Cetus | Manufactured an Enhanced Grunt 25518 | -5/Cetus | Destroyed A7 25523 | -5/Cetus | Extracted ID and sensor layout for unrecognized location from A7's data core 25536 | -5/Cetus | Entered Archives 25536 | -5/Archives | Accompanied by 20 allies 25558 | -5/Archives | Discovered exit to Factory (range 15) 25868 | -5/Archives | Discovered new exit (range 16) 25878 | -5/Archives | Discovered new exit (range 16) 26251 | -5/Archives | Identified exit to Hub_04(d) 26303 | -5/Archives | Entered Hub_04(d) 26303 | -5/Hub_04(d) | Accompanied by 16 allies 26337 | -5/Hub_04(d) | Central database locked down 26382 | -5/Hub_04(d) | Discovered exit to Factory (range 8) 26521 | -5/Hub_04(d) | Network Hub disabled 26541 | -5/Hub_04(d) | Network Hub disabled 26564 | -5/Hub_04(d) | Network Hub disabled 26577 | -5/Hub_04(d) | Network Hub disabled 26587 | -5/Hub_04(d) | Spotted Lightning 26587 | -5/Hub_04(d) | Spotted Lightning 26597 | -5/Hub_04(d) | Incoming investigation squad redirected 26598 | -5/Hub_04(d) | Entered Factory 26598 | -4/Factory | Evolved 2 slots: Utility x2 26634 | -4/Factory | Identified exit to Upper Caves 26634 | -4/Factory | Identified exit to Armory 26639 | -4/Factory | Central database locked down 26667 | -4/Factory | Spotted B-86 Titan 26688 | -4/Factory | Repaired Exp. Weapon Shielding? 26742 | -4/Factory | Repaired Exp. Utility Shielding 26762 | -4/Factory | Repaired Mic. Fission Core? 26798 | -4/Factory | Repaired Biomechanical Wings 26921 | -4/Factory | Discovered new exit (range 16) 26970 | -4/Factory | Fabricated Inertial Stasis Machine (x1) 26970 | -4/Factory | Build established: Hacker-Mutant 27016 | -4/Factory | Fabricated Inertial Stasis Machine? 27016 | -4/Factory | Repaired Adv. Energy Well? 27047 | -4/Factory | Fabricated Imp. Weapon Cycler (x2) 27204 | -4/Factory | Entered Armory 27234 | -4/Armory | Found Gamma Bomb Array 27436 | -4/Armory | Fabricated Exp. Terrain Scan Processor? 27523 | -4/Armory | Fabricated Exp. Terrain Scanner? 27618 | -4/Armory | Fabricated Mni. Fusion Reactor? 28027 | -4/Armory | Discovered new exit (range 5) 28045 | -4/Armory | Build established: Machinist-Mutant 28135 | -4/Armory | Discovered new exit (range 10) 28159 | -4/Armory | Discovered new exit (range 18) 28174 | -4/Armory | Identified exit to Lab 28175 | -4/Armory | Entered Lab 28175 | -4/Lab | Discovered new exit (range 9) 28178 | -4/Lab | Identified exit to Research 28180 | -4/Lab | Hidden lab's door opened automatically 28180 | -4/Lab | Sensor layout match revealed 28181 | -4/Lab | Gained access to the hidden lab's interior 28182 | -4/Lab | Unable to decrypt terminal 28194 | -4/Lab | Found Prototype Energy Cannon 28194 | -4/Lab | Identified Warp Cannon 28197 | -4/Lab | Found Prototype Energy Gun 28197 | -4/Lab | Identified Tachyon Dispersion Ray 28200 | -4/Lab | Found Prototype Protection 28200 | -4/Lab | Identified Exp. Powered Armor 28203 | -4/Lab | Found Prototype Hackware 28203 | -4/Lab | Identified Quantum Router 28212 | -4/Lab | Found Prototype Special Weapon 28212 | -4/Lab | Identified Gui. Remote Datajack 28239 | -4/Lab | Found Alien Artifact 28245 | -4/Lab | Found Alien Artifact 28250 | -4/Lab | Found Alien Artifact 28264 | -4/Lab | Found Alien Artifact 28398 | -4/Lab | Entered Research 28398 | -3/Research | Evolved 2 slots: Utility x2 28411 | -3/Research | Identified exit to Quarantine 28428 | -3/Research | Incoming investigation squad redirected 28467 | -3/Research | Identified Transdimensional Reconstructor 28467 | -3/Research | Identified Core Regenerator 28467 | -3/Research | Identified Integrated Dissipator 28467 | -3/Research | Identified Core Reset Matrix 28548 | -3/Research | Found Antimissile System 28588 | -3/Research | Build established: Machinist-Scout 28596 | -3/Research | Spotted B-86 Titan 28598 | -3/Research | Revision forces began assault on 0b10 28620 | -3/Research | Repaired Exp. Weapon Shielding? 28687 | -3/Research | Met up with Revision 17++ 28746 | -3/Research | Fabricated Exp. Utility Shielding? 28996 | -3/Research | Fabricated Cld. Field Propulsion Drive? 29098 | -3/Research | Research terminal network offline 29122 | -3/Research | Build established: Machinist-Sprinter 29188 | -3/Research | Repaired Exp. Utility Shielding? 29234 | -3/Research | Repaired Exp. Weapon Shielding 29235 | -3/Research | Installed Integrated Dissipator, increased core heat dissipation (+20) 29382 | -3/Research | Local fabrication network quarantined 29393 | -3/Research | Entered Quarantine 29439 | -3/Quarantine | Discovered new exit (range 29) 29482 | -3/Quarantine | Found Alien Artifact 29518 | -3/Quarantine | Identified exit to Research 29649 | -3/Quarantine | Identified Stasis Generator 29686 | -3/Quarantine | Repaired Exp. Sensor Array 29705 | -3/Quarantine | Repaired Mic. Fission Core? 29710 | -3/Quarantine | Found Alien Impact Weapon 29778 | -3/Quarantine | Found Alien Slashing Weapon 29790 | -3/Quarantine | Identified Core Stripper 29790 | -3/Quarantine | Identified Sigix Broadsword 29838 | -3/Quarantine | Spotted Fortress 29867 | -3/Quarantine | Discovered new exit (range 6) 29882 | -3/Quarantine | Identified exit to Section 7 29903 | -3/Quarantine | Entered Section 7 29945 | -3/Section 7 | Spotted S7 Guard 29975 | -3/Section 7 | Found Alien Artifact 30004 | -3/Section 7 | Identified Integrated Reactor 30004 | -3/Section 7 | Installed Integrated Reactor, increased core energy generation (+10) 30135 | -3/Section 7 | Spotted S7 Guard 30155 | -3/Section 7 | Found Alien Artifact 30171 | -3/Section 7 | Identified Integrated Singularity Reactor 30640 | -3/Section 7 | Found Alien Artifact 30640 | -3/Section 7 | Identified LRC Energy Well 30640 | -3/Section 7 | Installed LRC Energy Well, increased energy storage capacity (+250) 30643 | -3/Section 7 | Found Alien Artifact 30643 | -3/Section 7 | Identified LRC Boosters 30643 | -3/Section 7 | Installed LRC Boosters, increased mass support (+10) 30644 | -3/Section 7 | Found Alien Artifact 30644 | -3/Section 7 | Identified LRC Insulator 30644 | -3/Section 7 | Installed LRC Insulator, gained EM resistance (25) 30781 | -3/Section 7 | Spotted B-99 Colossus 30798 | -3/Section 7 | Spotted Executioner 30913 | -3/Section 7 | Found Alien Artifact 30952 | -3/Section 7 | Identified Integrated Heat Negator 30957 | -3/Section 7 | Installed Integrated Heat Negator, increased core heat dissipation (+40) 30958 | -3/Section 7 | Installed Integrated Singularity Reactor, increased core energy generation (+20) 31136 | -3/Section 7 | Garrison activated, responded to threat 31182 | -3/Section 7 | Found Integrated Dissipator 31182 | -3/Section 7 | Installed Integrated Dissipator, increased core heat dissipation (+20) 31243 | -3/Section 7 | Discovered exit to Research (range 9) 31269 | -3/Section 7 | Found Alien Artifact 31367 | -3/Section 7 | Identified Integrity Redistributor 31422 | -3/Section 7 | Entered Research 31422 | -2/Research | Evolved 2 slots: Utility x2 31491 | -2/Research | Identified exit to Testing 31518 | -2/Research | Fabricated Exp. Weapon Shielding? 31524 | -2/Research | Local fabrication network quarantined 31672 | -2/Research | First assault squad dispatched 31745 | -2/Research | Spotted B-90 Cyclops 31786 | -2/Research | Allied Derelicts emerged from ambush trap array 31866 | -2/Research | Entered Testing 31866 | -2/Testing | Accompanied by 3 allies 31912 | -2/Testing | Repaired Exp. Weapon Shielding? 31933 | -2/Testing | Unstable Terrabomb Derivative detonated 31943 | -2/Testing | Repaired Exp. Utility Shielding 31963 | -2/Testing | Repaired Cld. Field Propulsion Drive 31979 | -2/Testing | Spotted Alpha 7 31986 | -2/Testing | Repaired Broken Mic. Fission Core? 31999 | -2/Testing | Spotted LT-6SN(K) 31999 | -2/Testing | Spotted A2-P1V(K) 31999 | -2/Testing | Spotted CM-OZ3(K) 32011 | -2/Testing | Rewired LT-6SN(K) 32014 | -2/Testing | Rewired A2-P1V(K) 32016 | -2/Testing | Rewired CM-OZ3(K) 32151 | -2/Testing | First assault squad dispatched 32171 | -2/Testing | Incoming assault squad redirected 32239 | -2/Testing | Fabricated Exp. Weapon Shielding? 32244 | -2/Testing | Repaired Exp. Utility Shielding 32251 | -2/Testing | Repaired Exp. Weapon Shielding? 32301 | -2/Testing | Repaired Mic. Fission Core? 32307 | -2/Testing | Fabricated Quantum Shading Machine? 32331 | -2/Testing | Found Prototype Protection 32349 | -2/Testing | Repaired Exp. Weapon Shielding 32381 | -2/Testing | Incoming assault squad redirected 32389 | -2/Testing | Repaired Exp. Utility Shielding 32438 | -2/Testing | DAS Turret deployed 32478 | -2/Testing | Found Faulty Exp. Core Analyzer 32516 | -2/Testing | Found Prototype Ballistic Gun 32516 | -2/Testing | Identified Hyp. Multirail 32542 | -2/Testing | Discovered new exit (range 25) 32551 | -2/Testing | Spotted PP-29FQCVPM7J 32581 | -2/Testing | Spotted PH-5O2R80HHUV 32605 | -2/Testing | Fabricated Quantum Shading Machine? 32617 | -2/Testing | Protovariant out of control (PH-5O2R80HHUV) 32617 | -2/Testing | Unleashed a protovariant (PH-5O2R80HHUV) 32634 | -2/Testing | Incoming assault squad redirected 32666 | -2/Testing | Incoming assault squad redirected 32911 | -2/Testing | Destroyed 9 combat bots 32982 | -2/Testing | Found Prototype Energy Cannon 32982 | -2/Testing | Identified Hpw. Disruptor Cannon 33007 | -2/Testing | Found Prototype Hackware 33007 | -2/Testing | Identified Ghost Barrier 33074 | -2/Testing | Destroyed PP-29FQCVPM7J 33077 | -2/Testing | Found Prototype Reactor 33077 | -2/Testing | Identified Zero-point Reactor 33092 | -2/Testing | Found Prototype Device 33092 | -2/Testing | Identified Exp. Weapon Cycler 33103 | -2/Testing | Found Zero-point Reactor 33130 | -2/Testing | Found Prototype Energy Cannon 33130 | -2/Testing | Identified Imp. Potential Cannon 33147 | -2/Testing | Identified exit to Access 33148 | -2/Testing | Entered Access 33148 | -1/Access | Evolved 2 slots: Utility x2 33154 | -1/Access | Found Enh. Force Lance 33356 | -1/Access | Build established: Wizard-Scout 33361 | -1/Access | Repaired Exp. Weapon Shielding? 33389 | -1/Access | Discovered new exit (range 13) 33497 | -1/Access | Repaired Cld. Field Propulsion Drive 33740 | -1/Access | Repaired Cld. Field Propulsion Drive 33740 | -1/Access | Repaired Exp. Utility Shielding? 33766 | -1/Access | Repaired Exp. Utility Shielding 33782 | -1/Access | Repaired Mni. Fusion Reactor 33793 | -1/Access | Repaired Exp. Weapon Shielding 33841 | -1/Access | Build established: Wizard-Sprinter 34398 | -1/Access | First assault squad dispatched 34417 | -1/Access | Incoming assault squad redirected 34482 | -1/Access | Garrison activated, responded to threat 34653 | -1/Access | Fabricated Femtoactuators (x1) 34728 | -1/Access | Fabricated Dimensional Manipulator (x1) 34802 | -1/Access | Fabricated Dimensional Manipulator? 34932 | -1/Access | Fabricated Dimensional Manipulator (x1) 35028 | -1/Access | Local fabrication network quarantined 35250 | -1/Access | Repaired Exp. Utility Shielding? 35257 | -1/Access | Repaired Exp. Weapon Shielding? 35278 | -1/Access | Repaired Lgt. Quantum Reactor? 35407 | -1/Access | Repaired Broken Imp. Diametric Drive 35413 | -1/Access | Incoming assault squad redirected 35516 | -1/Access | Identified exit to Command 35516 | -1/Access | Entered Command 35655 | -1/Command | Disengaged cave seal 35678 | -1/Command | Discovered new exit (range 24) 35698 | -1/Command | Phase Generator disabled 35891 | -1/Command | Disengaged cave seal 36028 | -1/Command | Spotted Striker 36030 | -1/Command | Destroyed Striker 36184 | -1/Command | Identified SHELL Armor 36222 | -1/Command | Spotted Combat Programmer 36223 | -1/Command | Destroyed Combat Programmer 36243 | -1/Command | Spotted M Guard 36248 | -1/Command | Spotted M Guard 36253 | -1/Command | Destroyed M Guard 36261 | -1/Command | Destroyed M Guard 36322 | -1/Command | Found Prototype Device 36322 | -1/Command | Identified AEGIS Remote Shield 36499 | -1/Command | Build established: Machinist-Sprinter 36515 | -1/Command | Spotted Combat Programmer 36524 | -1/Command | Destroyed Combat Programmer 36524 | -1/Command | All MAIN.C guards destroyed 36533 | -1/Command | Found Prototype Device 36533 | -1/Command | Identified Exp. Focal Shield 36538 | -1/Command | Found Prototype Processor 36538 | -1/Command | Identified Exp. Target Analyzer 36589 | -1/Command | Found Prototype Device 36589 | -1/Command | Identified Thermal Barrier 36661 | -1/Command | Found Exp. Targeting Computer 36730 | -1/Command | Found AEGIS Remote Shield 36844 | -1/Command | Found Zero-point Reactor 36847 | -1/Command | Found Zero-point Reactor 36849 | -1/Command | Found Zero-point Reactor 36938 | -1/Command | Met MAIN.C 36941 | -1/Command | 0b10 Conduit disabled 36967 | -1/Command | Destroyed MAIN.C Shell 36969 | -1/Command | MAIN.C activated Command garrisons 37002 | -1/Command | Destroyed MAIN.C 37007 | -1/Command | Found Zero-point Reactor 37012 | -1/Command | Found Zero-point Reactor 38900 | -1/Command | Found Prototype Device 38900 | -1/Command | Identified Exp. Shock Absorption System 39834 | -1/Command | Discovered new exit (range 28) 39942 | -1/Command | Found Prototype Device 39942 | -1/Command | Identified EM Dispersion Field 39948 | -1/Command | Found Prototype Launcher 39948 | -1/Command | Identified Z-bomb Delivery System 39952 | -1/Command | Found Prototype Reactor 39952 | -1/Command | Identified Vortex Chain Reactor 41041 | -1/Command | Build established: Hauler-Mutant 42125 | -1/Command | Found Prototype Ballistic Gun 42131 | -1/Command | Found Prototype Ballistic Gun 42179 | -1/Command | Found Hvy. Reflective Plating 42183 | -1/Command | Found Prototype Ballistic Gun 42452 | -1/Command | Identified Multirail (x2) 42552 | -1/Command | Found Exp. Powered Armor 42742 | -1/Command | Found Prototype Protection 42748 | -1/Command | Found Prototype Protection 42772 | -1/Command | Found Hvy. Insulated Plating 42849 | -1/Command | Build established: Hauler-Sprinter 43068 | -1/Command | Identified Hvy. Regenerative Plating (x2) 43785 | -1/Command | Found Zero-point Reactor 47121 | -1/Command | Found Antimissile System 49993 | -1/Command | Found Fusion Bomb Launcher 50626 | -1/Command | Found Prototype Energy Cannon 50748 | -1/Command | Found Prototype Launcher 50752 | -1/Command | Found Prototype Launcher 50828 | -1/Command | Found Prototype Special Weapon 51166 | -1/Command | Found Prototype Energy Cannon 51167 | -1/Command | Found Prototype Special Weapon 51421 | -1/Command | Found Prototype Energy Cannon 52140 | -1/Command | Found Multirail 53620 | -1/Command | Found Gamma Bomb Array 53621 | -1/Command | Found Gamma Bomb Array 53623 | -1/Command | Found Gamma Bomb Array 53624 | -1/Command | Found Gamma Bomb Array 53625 | -1/Command | Found Gamma Bomb Array 54683 | -1/Command | Found Exp. Target Analyzer 54684 | -1/Command | Found Exp. Targeting Computer 54840 | -1/Command | Found Exp. Target Analyzer 55193 | -1/Command | Build established: Hauler-Mutant 55461 | -1/Command | Found Exp. Targeting Computer 55467 | -1/Command | Found Exp. Targeting Computer 55468 | -1/Command | Found Exp. Core Analyzer 55578 | -1/Command | Found Exp. Targeting Computer 55609 | -1/Command | Found Exp. Target Analyzer 55614 | -1/Command | Found Exp. Targeting Computer 55681 | -1/Command | Build established: Hauler-Sprinter 58540 | -1/Command | Found Beam Splitter 58717 | -1/Command | Found Thermal Barrier 58727 | -1/Command | Found Exp. Focal Shield 58789 | -1/Command | Found Antimissile System 61403 | -1/Command | Found Zero-point Reactor 61411 | -1/Command | Found Exp. Melee Analysis Suite 61416 | -1/Command | Found Exp. Weapon Cycler 62711 | -1/Command | Identified Ragnarok Missile Launcher 62713 | -1/Command | Identified Hellfire Missile Launcher 62818 | -1/Command | Identified Exp. Remote Datajack 62826 | -1/Command | Identified EMDS 63547 | -1/Command | Build established: Hauler-Mutant 63949 | -1/Command | Build established: Mutant 65089 | -1/Command | Build established: Hauler-Mutant 67740 | -1/Command | Used Integrity Redistributor, redistributed integrity from core (-201) 69111 | -1/Command | Warped through subspace to slip node 69111 | -1/Command | Discovered new exit (range 4) 69139 | -1/Command | Entered Access_0 69140 | -1/Access_0 | Architect warped through subspace 69150 | -1/Access_0 | Destroyed A8 69198 | -1/Access_0 | Architect warped through subspace 69241 | -1/Access_0 | Found Exp. Phase Shifter 69281 | -1/Access_0 | Subspace Access Node disabled 69310 | -1/Access_0 | Architect warped through subspace 69346 | -1/Access_0 | Architect warped through subspace 69367 | -1/Access_0 | Architect warped through subspace 69374 | -1/Access_0 | A6 warped into view 69452 | -1/Access_0 | Build established: Machinist-Sprinter 69466 | -1/Access_0 | Architect warped through subspace 69514 | -1/Access_0 | Subspace Access Node disabled 69520 | -1/Access_0 | Core integrity fell below 50% 69528 | -1/Access_0 | Architect warped through subspace 69571 | -1/Access_0 | Architect warped through subspace 69596 | -1/Access_0 | A5 warped into view 69637 | -1/Access_0 | Subspace Access Node disabled 69638 | -1/Access_0 | Architect warped through subspace 69761 | -1/Access_0 | Architect warped through subspace 69844 | -1/Access_0 | Destroyed A2 69845 | -1/Access_0 | Extracted Singularity Gate Test 138-C access codes from A2's data core 69856 | -1/Access_0 | Architect warped through subspace 69863 | -1/Access_0 | Found Exp. Targeting Computer 69865 | -1/Access_0 | Found Exp. Targeting Computer 69880 | -1/Access_0 | A4 warped into view 69884 | -1/Access_0 | Lost 7 parts (1n5u1w) 69895 | -1/Access_0 | Started Test 138-B, establishing a local singularity 69895 | -1/Access_0 | Started Test 138-C, cascade imminent 69895 | *** | Destroyed Tau Ceti IV! Last Messages --------------- 69882_ Slug penetrates Wall. 69895_ Connecting with Gate Controls... 69895_ Current location identified: Access_0 >>Gate Test 138-A Running Singularity Gate diagnostics... All systems nominal. >>Gate Test 138-B Preparing Singularity Gate activation... Stable singularity established. 69895_ Connecting with Gate Controls... >>Gate Test 138-C Initiating Test 138-C... Warning: Experimental formulas incomplete. Potential effects include instability. Repeat command to confirm test. >>Gate Test 138-C Initiating Test 138-C... Applying incomplete calculations.... INSTABILITY DETECTED, CASCADE IMMINENT. [Achievement: Stardust] Map ----- +----------------------------------------------------+ | ?????????????????????????????##??#?##?#?####?## | | ????????????????????????????????#?###???#?##### | | ??????????????????????????? ##?#??##???####???# | | ???????????????????????????????????#####?#####? | | ?????????????????????????????######?#?###??##?# | | ???????????????????????????#?#?######??#######? | | ?????????????????????????????#?######???######? | | ??????????????????????????#???#? #####???##### | | ??????????????????????????? ? ? ? #??####??### | | ??????????????????????????????#???? ?##?####### | | ???????????????????? ?????????# ????### #?##? | | ?????????????????? ??????#??#? ?# ??### | | ????????????????" """""?#?###???? ? ####? | | ?????????????"""" """"???#?#??? ?? ?? ?##?# | | ?????????????" "???###?## #?#??##### | | ????????????"" "????#?##?? ##? #?#### | | ????????????"" ""????##?? ### ###### | | ????????????#" "####?##?# ??#? ##?##? | | ????????????#" "#??#?##?#? ??#??# | | ????????????#" "#????#??? ?# ##??#?? | | ????????????#" "#?#???#?? ??# ?##??## | | ???????????##" "###?####? ## #?#??#? | | ???????????#"" ""#????##?? #? ####### | | ???????????#"" ""##???#? ??#? #?#??## | | ????????????#" "## ### ?### #??#?## | | ?????????????"""" @A""## ###?? ##?#??# | | ?????????????"""" """""# #?### ###???# | | ?????????????#### ###### #???### ##??#?? | | ????????????????# ## #???## #?#### | | ????????????????# # #?#?# #???## | | ????????????????# ## #???# ###?#?# | | ????????????????# ## ##### #??####? | | ????????????????# ## #####"## | | ????????????????# ## !##"" "" | | ????????????????# ## ! ##"!! | | ????????????????# #### ! ==!= | | ????????????????# #??# ##### !!= ! | | ????????????????# #??# ##??#######"* | | ????????????????# #??# #######???#"" " | | ????????????????# #??## #??#?###" | | ????????????????# ##??## ##??#??## | | ???????????????## #?### ## #?????## | | ???????????????# #?# ##?#???####### | | ???????????????# ### #???? ##??#? | | ???????????????## ### #??## #??#? | | ????????????????## ### #### #?# #???? | | ?????????????????##??# #?# ## #?##?? | | ?????????????????????# #?# ##????? | | ?????????????????????## ##?### #?????? | | ??????????????????????## ###????# #?????? | +----------------------------------------------------+ Best States ------------- Heat Dissipation 132 Coolant Potential 120 Energy Generation 113 Energy Capacity 1630 Matter Stores 300 Matter Capacity 300 Sight Range 22 Robot Scan Range 30 Terrain Scan Range 30 Terrain Scan Density 1010 ECM Strength 3 Jamming Range 16 Cloak Strength 3 Power Amplification 40 Additional Mass Support 100 Armor Coverage 1800 Resistance: KI 30 Resistance: TH 75 Resistance: EX 90 Resistance: EM 25 Core Shielding 40 Propulsion Shielding 66 Utility Shielding 90 Weapon Shielding 90 Weapon Cycling 30 Melee Speed Boost 50 Phase Shifting 20 Evasion (%) 97 Targeting Accuracy 36 Melee Accuracy 12 Target Analysis 12 Armor Integrity Analysis 66 Recoil Reduction 2 Matter Filtering 30 Force Boost 3 Overload Amplification 100 Offensive Hacking 50 Defensive Hacking 45 Item Schematics ----------------- Exp. Sensor Array | -8/Materials | Scanalyzed Adv. Signal Interpreter | -7/Factory | Hacked Lrn. Sensor Array | -6/Factory | Hacked Imp. Hacking Suite | -6/Factory | Hacked Combat Drone Bay | -6/Data Miner | Free Lgt. Regenerative Plating | -6/Data Miner | Free Exp. Flexi-carbon Leg | -6/Data Miner | Free Exp. Targeting Computer | -6/Data Miner | Free Exp. ECM Suite | -6/Data Miner | Free Kinetic Spear | -6/Data Miner | Free Biomechanical Wings | -5/Factory | Hacked Adv. System Shield | -5/Factory | Hacked Mic. Fission Core | -5/Factory | Hacked Exp. Utility Shielding | -5/Factory | Hacked Exp. Propulsion Shielding | -5/Factory | Hacked Exp. Weapon Shielding | -5/Factory | Hacked Adv. Core Analyzer | -5/Factory | Hacked Armor Integrity Analyzer | -5/Factory | Extracted Arc Projector | -5/Factory | Extracted Imp. Salvage Targeting Computer | -5/Factory | Extracted Energy Filter | -5/Factory | Extracted EM Shield | -5/Factory | Extracted Disruptor Cannon | -5/Factory | Extracted Hyp. Railgun | -5/Extension | Hacked Imp. Weapon Cycler | -5/Cetus | Hacked Quantum Capacitor | -5/Hub_04(d) | Hacked Exp. Signal Interpreter | -5/Hub_04(d) | Hacked Adv. Particle Charger | -5/Hub_04(d) | Hacked Hyp. Mass Driver | -5/Hub_04(d) | Hacked Inertial Stasis Machine | -4/Factory | Hacked Diametric Drive | -4/Factory | Hacked Mni. Fusion Reactor | -4/Factory | Hacked Com. HERF Cannon | -4/Armory | Hacked Exp. Terrain Scan Processor | -4/Armory | Hacked Exp. Terrain Scanner | -4/Armory | Hacked Cld. Field Propulsion Drive | -3/Research | Scanalyzed Adv. Energy Well | -3/Research | Scanalyzed Med. Storage Unit | -3/Research | Scanalyzed Antimissile System | -3/Research | Scanalyzed Gamma Bomb Array | -3/Research | Scanalyzed Matter Compressor | -3/Research | Scanalyzed Quantum Shading Machine | -3/Research | Scanalyzed Imp. Cloaking Device | -3/Research | Scanalyzed Imp. System Shield | -3/Quarantine | Scanalyzed Adv. Reaction Control System | -3/Section 7 | Hacked Exp. Core Analyzer | -2/Testing | Scanalyzed Zero-point Reactor | -2/Testing | Scanalyzed Femtoactuators | -1/Access | Hacked Dimensional Manipulator | -1/Access | Hacked Exp. Phase Shifter | -1/Access | Hacked Robot Schematics ------------------ M-28 Smith | -8/Materials | Hacked P-60 Hacker | -7/Factory | Hacked S-27 Virus | -6/Data Miner | Free G-50 Soldier | -6/Data Miner | Free H-66 Slayer | -6/Data Miner | Free I-36 Angel | -6/Data Miner | Free P-70 Sage | -5/Cetus | Hacked Fabricated ------------ P-60 Hacker | x2 | -7/Factory Exp. Sensor Array | x1 | -6/Factory Imp. Hacking Suite | x1 | -6/Factory Imp. Hacking Suite | x1 | -6/Factory Biomechanical Wings | x1 | -5/Factory Biomechanical Wings | x1 | -5/Factory Exp. Targeting Computer | x1 | -5/Factory Exp. Targeting Computer | x1 | -5/Factory Exp. Utility Shielding | x1 | -5/Factory Mic. Fission Core | x2 | -5/Factory Exp. Weapon Shielding | x1 | -5/Factory Adv. Signal Interpreter | x2 | -5/Factory Biomechanical Wings | x1 | -5/Factory Adv. System Shield | x1 | -5/Factory Inertial Stasis Machine | x1 | -4/Factory Inertial Stasis Machine | x1 | -4/Factory Imp. Weapon Cycler | x2 | -4/Factory Exp. Terrain Scan Processor | x1 | -4/Armory Exp. Terrain Scanner | x1 | -4/Armory Mni. Fusion Reactor | x1 | -4/Armory Exp. Utility Shielding | x1 | -3/Research Cld. Field Propulsion Drive | x1 | -3/Research Exp. Weapon Shielding | x1 | -2/Research Exp. Weapon Shielding | x1 | -2/Testing Quantum Shading Machine | x1 | -2/Testing Quantum Shading Machine | x1 | -2/Testing Femtoactuators | x1 | -1/Access Dimensional Manipulator | x1 | -1/Access Dimensional Manipulator | x1 | -1/Access Dimensional Manipulator | x1 | -1/Access Alien Tech Used ----------------- Integrated Dissipator Sigix Broadsword Integrated Reactor LRC Energy Well LRC Boosters LRC Insulator Integrated Heat Negator Integrated Singularity Reactor Core Stripper Integrity Redistributor Transdimensional Reconstructor Achievements -------------- Sniper Stardust void main() Challenges ------------ None Game ------ Seed HeavyReclamationStick Manual? 0 Play Time 17:47:58 Cumulative 267.2 hours Start 2020.10.17 @ 14:54:42 End 2020.10.28 @ 19:37:46 Sessions 41 Manual Loads 0 Difficulty Rogue Special Mode None Game No. 100 Rogue 100 Adventurer 0 Explorer 0 Win Type 5 Total 9 Types 7/0/0/1/0/1/0/0/0 Lore% 83 Gallery% 83 Achievement% 74 Wizard Run 0 Options --------- ASCII 1 Keyboard 0 Movement Numpad Keybinds 0 Fullscreen 1 Font 18/Cog Map View 76x50 Tactical HUD 1 Map Filters NONE Filters NONE Steam 1 RUN: 97ed93dd-d32d-497b-919b-ba13fa7ef50d